Workbook

Sheet Tabelle1
A1: Spielernamen (Reihenfolge wird ausgelost) | B1: Anfangswert um die Reihenfolge festlegen zu können | D1: Team 1 | E1: Punktevergabe nach dem Spiel | F1: Team 1 | G1: Punktevergabe nach dem Spiel | H1: gegen | I1: Team 2 | J1: Punktevergabe nach dem Spiel | K1: Team 2 | L1: Punktevergabe nach dem Spiel | M1: Ergebnis per Hand – nur Statistik | N1: Punkte TEAM1 | O1: Punkte TEAM2
A3: Henry | B3: 0.2 | D3: =INDEX($A$3:$A$22,MATCH(LARGE($B$3:$B$22,1),$B$3:$B$22,0)) -> Henry | E3: =VLOOKUP(D3,$A$3:$B$22,2,0)+$N3 -> 1.2 | F3: =INDEX($A$3:$A$22,MATCH(SMALL($B$3:$B$22,1),$B$3:$B$22,0)) -> Manfred | G3: =VLOOKUP(F3,$A$3:$B$22,2,0)+$N3 -> 1.01 | I3: =INDEX($A$3:$A$22,MATCH(LARGE($B$3:$B$22,2),$B$3:$B$22,0)) -> Kurt | J3: =VLOOKUP(I3,$A$3:$B$22,2,0)+$O3 -> 0.19 | K3: =INDEX($A$3:$A$22,MATCH(SMALL($B$3:$B$22,2),$B$3:$B$22,0)) -> Sören | L3: =VLOOKUP(K3,$A$3:$B$22,2,0)+$O3 -> 0.02 | M3: 21 zu 12 | N3: 1 | O3: 0
A4: Kurt | B4: 0.19 | D4: =INDEX($A$3:$A$22,MATCH(LARGE($B$3:$B$22,3),$B$3:$B$22,0)) -> Franz | E4: 0.18 | F4: =INDEX($A$3:$A$22,MATCH(SMALL($B$3:$B$22,3),$B$3:$B$22,0)) -> Christoph | G4: 0.03 | I4: =INDEX($A$3:$A$22,MATCH(LARGE($B$3:$B$22,4),$B$3:$B$22,0)) -> Günther | J4: 1.67 | K4: =INDEX($A$3:$A$22,MATCH(SMALL($B$3:$B$22,4),$B$3:$B$22,0)) -> Rudi | L4: 1.54 | M4: 6 zu 21 | N4: 0 | O4: 1.5
A5: Franz | B5: 0.18 | D5: =INDEX($A$3:$A$22,MATCH(LARGE($B$3:$B$22,5),$B$3:$B$22,0)) -> Bernd | E5: 0.16 | F5: =INDEX($A$3:$A$22,MATCH(SMALL($B$3:$B$22,5),$B$3:$B$22,0)) -> Peter | G5: 0.05 | I5: =INDEX($A$3:$A$22,MATCH(LARGE($B$3:$B$22,6),$B$3:$B$22,0)) -> Ralf | J5: 0.65 | K5: =INDEX($A$3:$A$22,MATCH(SMALL($B$3:$B$22,6),$B$3:$B$22,0)) -> Marec | L5: 0.56 | M5: 19 zu 21 | N5: 0 | O5: 0.5
A6: Günther | B6: 0.17 | D6: =INDEX($A$3:$A$22,MATCH(LARGE($B$3:$B$22,7),$B$3:$B$22,0)) -> Georg | E6: 0.14 | F6: =INDEX($A$3:$A$22,MATCH(SMALL($B$3:$B$22,7),$B$3:$B$22,0)) -> Mario | G6: 0.07 | I6: =INDEX($A$3:$A$22,MATCH(LARGE($B$3:$B$22,8),$B$3:$B$22,0)) -> Henrik | J6: 1.63 | K6: =INDEX($A$3:$A$22,MATCH(SMALL($B$3:$B$22,8),$B$3:$B$22,0)) -> Timo | L6: 1.58 | M6: 8 zu 21 | N6: 0 | O6: 1.5
A7: Bernd | B7: 0.16 | D7: =INDEX($A$3:$A$22,MATCH(LARGE($B$3:$B$22,9),$B$3:$B$22,0)) -> Wolfgang | E7: 0.62 | F7: =INDEX($A$3:$A$22,MATCH(SMALL($B$3:$B$22,9),$B$3:$B$22,0)) -> Willi | G7: 0.59 | I7: =INDEX($A$3:$A$22,MATCH(LARGE($B$3:$B$22,10),$B$3:$B$22,0)) -> Jens | J7: 0.11 | K7: =INDEX($A$3:$A$22,MATCH(SMALL($B$3:$B$22,10),$B$3:$B$22,0)) -> Dieter | L7: 0.1 | M7: 21 zu 19 | N7: 0.5 | O7: 0
A8: Ralf | B8: 0.15
A9: Georg | B9: 0.14
A10: Henrik | B10: 0.13
A11: Wolfgang | B11: 0.12
A12: Jens | B12: 0.11
A13: Dieter | B13: 0.1
A14: Willi | B14: 0.09
A15: Timo | B15: 0.08
A16: Mario | B16: 0.07
A17: Marec | B17: 0.06
A18: Peter | B18: 0.05
A19: Rudi | B19: 0.04
A20: Christoph | B20: 0.03
A21: Sören | B21: 0.02
A22: Manfred | B22: 0.01

Sheet Tabelle2
A1: Spielernamen (Reihenfolge wird ausgelost) | B1: Wert aus bisher gespielten Spielen | D1: Team 1 | E1: Punktevergabe nach dem Spiel | F1: Team 1 | G1: Punktevergabe nach dem Spiel | H1: gegen | I1: Team 2 | J1: Punktevergabe nach dem Spiel | K1: Team 2 | L1: Punktevergabe nach dem Spiel | M1: Ergebnis per Hand – nur Statistik | N1: Punkte TEAM1 | O1: Punkte TEAM2
A3: =IFERROR(INDEX(Tabelle1!$I$3:$I$7,MATCH(B3,Tabelle1!$J$3:$J$7,0)),IFERROR(INDEX(Tabelle1!$K$3:$K$7,MATCH(B3,Tabelle1!$L$3:$L$7,0)),IFERROR(INDEX(Tabelle1!$F$3:$F$7,MATCH(B3,Tabelle1!$G$3:$G$7,0)),IFERROR(INDEX(Tabelle1!$D$3:$D$7,MATCH(B3,Tabelle1!$E$3:$E$7,0)),"Nicht gefunden")))) -> Günther | B3: =LARGE(Tabelle1!$D$3:$L$7,ROW()-2) -> 1.67 | D3: =INDEX($A$3:$A$22,MATCH(LARGE($B$3:$B$22,1),$B$3:$B$22,0)) -> Günther | E3: =VLOOKUP(D3,$A$3:$B$22,2,0)+$N3 -> 2.67 | F3: =INDEX($A$3:$A$22,MATCH(SMALL($B$3:$B$22,1),$B$3:$B$22,0)) -> Sören | G3: =VLOOKUP(F3,$A$3:$B$22,2,0)+$N3 -> 1.02 | I3: =INDEX($A$3:$A$22,MATCH(LARGE($B$3:$B$22,2),$B$3:$B$22,0)) -> Henrik | J3: =VLOOKUP(I3,$A$3:$B$22,2,0)+$O3 -> 1.63 | K3: =INDEX($A$3:$A$22,MATCH(SMALL($B$3:$B$22,2),$B$3:$B$22,0)) -> Christoph | L3: =VLOOKUP(K3,$A$3:$B$22,2,0)+$O3 -> 0.03 | M3: 21 zu 12 | N3: 1
A4: =IFERROR(INDEX(Tabelle1!$I$3:$I$7,MATCH(B4,Tabelle1!$J$3:$J$7,0)),IFERROR(INDEX(Tabelle1!$K$3:$K$7,MATCH(B4,Tabelle1!$L$3:$L$7,0)),IFERROR(INDEX(Tabelle1!$F$3:$F$7,MATCH(B4,Tabelle1!$G$3:$G$7,0)),IFERROR(INDEX(Tabelle1!$D$3:$D$7,MATCH(B4,Tabelle1!$E$3:$E$7,0)),"Nicht gefunden")))) -> Henrik | B4: =LARGE(Tabelle1!$D$3:$L$7,ROW()-2) -> 1.63 | D4: =INDEX($A$3:$A$22,MATCH(LARGE($B$3:$B$22,3),$B$3:$B$22,0)) -> Timo | E4: 1.58 | F4: =INDEX($A$3:$A$22,MATCH(SMALL($B$3:$B$22,3),$B$3:$B$22,0)) -> Peter | G4: 0.05 | I4: =INDEX($A$3:$A$22,MATCH(LARGE($B$3:$B$22,4),$B$3:$B$22,0)) -> Rudi | J4: 3.04 | K4: =INDEX($A$3:$A$22,MATCH(SMALL($B$3:$B$22,4),$B$3:$B$22,0)) -> Mario | L4: 1.57 | M4: 6 zu 21 | O4: 1.5
A5: =IFERROR(INDEX(Tabelle1!$I$3:$I$7,MATCH(B5,Tabelle1!$J$3:$J$7,0)),IFERROR(INDEX(Tabelle1!$K$3:$K$7,MATCH(B5,Tabelle1!$L$3:$L$7,0)),IFERROR(INDEX(Tabelle1!$F$3:$F$7,MATCH(B5,Tabelle1!$G$3:$G$7,0)),IFERROR(INDEX(Tabelle1!$D$3:$D$7,MATCH(B5,Tabelle1!$E$3:$E$7,0)),"Nicht gefunden")))) -> Timo | B5: =LARGE(Tabelle1!$D$3:$L$7,ROW()-2) -> 1.58 | D5: =INDEX($A$3:$A$22,MATCH(LARGE($B$3:$B$22,5),$B$3:$B$22,0)) -> Henry | E5: 1.2 | F5: =INDEX($A$3:$A$22,MATCH(SMALL($B$3:$B$22,5),$B$3:$B$22,0)) -> Dieter | G5: 0.1 | I5: =INDEX($A$3:$A$22,MATCH(LARGE($B$3:$B$22,6),$B$3:$B$22,0)) -> Manfred | J5: 1.51 | K5: =INDEX($A$3:$A$22,MATCH(SMALL($B$3:$B$22,6),$B$3:$B$22,0)) -> Jens | L5: 0.61 | M5: 19 zu 21 | O5: 0.5
A6: =IFERROR(INDEX(Tabelle1!$I$3:$I$7,MATCH(B6,Tabelle1!$J$3:$J$7,0)),IFERROR(INDEX(Tabelle1!$K$3:$K$7,MATCH(B6,Tabelle1!$L$3:$L$7,0)),IFERROR(INDEX(Tabelle1!$F$3:$F$7,MATCH(B6,Tabelle1!$G$3:$G$7,0)),IFERROR(INDEX(Tabelle1!$D$3:$D$7,MATCH(B6,Tabelle1!$E$3:$E$7,0)),"Nicht gefunden")))) -> Rudi | B6: =LARGE(Tabelle1!$D$3:$L$7,ROW()-2) -> 1.54 | D6: =INDEX($A$3:$A$22,MATCH(LARGE($B$3:$B$22,7),$B$3:$B$22,0)) -> Ralf | E6: 0.65 | F6: =INDEX($A$3:$A$22,MATCH(SMALL($B$3:$B$22,7),$B$3:$B$22,0)) -> Georg | G6: 0.14 | I6: =INDEX($A$3:$A$22,MATCH(LARGE($B$3:$B$22,8),$B$3:$B$22,0)) -> Wolfgang | J6: 2.12 | K6: =INDEX($A$3:$A$22,MATCH(SMALL($B$3:$B$22,8),$B$3:$B$22,0)) -> Bernd | L6: 1.66 | M6: 8 zu 21 | O6: 1.5
A7: =IFERROR(INDEX(Tabelle1!$I$3:$I$7,MATCH(B7,Tabelle1!$J$3:$J$7,0)),IFERROR(INDEX(Tabelle1!$K$3:$K$7,MATCH(B7,Tabelle1!$L$3:$L$7,0)),IFERROR(INDEX(Tabelle1!$F$3:$F$7,MATCH(B7,Tabelle1!$G$3:$G$7,0)),IFERROR(INDEX(Tabelle1!$D$3:$D$7,MATCH(B7,Tabelle1!$E$3:$E$7,0)),"Nicht gefunden")))) -> Henry | B7: =LARGE(Tabelle1!$D$3:$L$7,ROW()-2) -> 1.2 | D7: =INDEX($A$3:$A$22,MATCH(LARGE($B$3:$B$22,9),$B$3:$B$22,0)) -> Willi | E7: 1.09 | F7: =INDEX($A$3:$A$22,MATCH(SMALL($B$3:$B$22,9),$B$3:$B$22,0)) -> Franz | G7: 0.68 | I7: =INDEX($A$3:$A$22,MATCH(LARGE($B$3:$B$22,10),$B$3:$B$22,0)) -> Marec | J7: 0.56 | K7: =INDEX($A$3:$A$22,MATCH(SMALL($B$3:$B$22,10),$B$3:$B$22,0)) -> Kurt | L7: 0.19 | M7: 21 zu 19 | N7: 0.5
A8: =IFERROR(INDEX(Tabelle1!$I$3:$I$7,MATCH(B8,Tabelle1!$J$3:$J$7,0)),IFERROR(INDEX(Tabelle1!$K$3:$K$7,MATCH(B8,Tabelle1!$L$3:$L$7,0)),IFERROR(INDEX(Tabelle1!$F$3:$F$7,MATCH(B8,Tabelle1!$G$3:$G$7,0)),IFERROR(INDEX(Tabelle1!$D$3:$D$7,MATCH(B8,Tabelle1!$E$3:$E$7,0)),"Nicht gefunden")))) -> Manfred | B8: =LARGE(Tabelle1!$D$3:$L$7,ROW()-2) -> 1.01
A9: =IFERROR(INDEX(Tabelle1!$I$3:$I$7,MATCH(B9,Tabelle1!$J$3:$J$7,0)),IFERROR(INDEX(Tabelle1!$K$3:$K$7,MATCH(B9,Tabelle1!$L$3:$L$7,0)),IFERROR(INDEX(Tabelle1!$F$3:$F$7,MATCH(B9,Tabelle1!$G$3:$G$7,0)),IFERROR(INDEX(Tabelle1!$D$3:$D$7,MATCH(B9,Tabelle1!$E$3:$E$7,0)),"Nicht gefunden")))) -> Ralf | B9: =LARGE(Tabelle1!$D$3:$L$7,ROW()-2) -> 0.65
A10: =IFERROR(INDEX(Tabelle1!$I$3:$I$7,MATCH(B10,Tabelle1!$J$3:$J$7,0)),IFERROR(INDEX(Tabelle1!$K$3:$K$7,MATCH(B10,Tabelle1!$L$3:$L$7,0)),IFERROR(INDEX(Tabelle1!$F$3:$F$7,MATCH(B10,Tabelle1!$G$3:$G$7,0)),IFERROR(INDEX(Tabelle1!$D$3:$D$7,MATCH(B10,Tabelle1!$E$3:$E$7,0)),"Nicht gefunden")))) -> Wolfgang | B10: =LARGE(Tabelle1!$D$3:$L$7,ROW()-2) -> 0.62
A11: =IFERROR(INDEX(Tabelle1!$I$3:$I$7,MATCH(B11,Tabelle1!$J$3:$J$7,0)),IFERROR(INDEX(Tabelle1!$K$3:$K$7,MATCH(B11,Tabelle1!$L$3:$L$7,0)),IFERROR(INDEX(Tabelle1!$F$3:$F$7,MATCH(B11,Tabelle1!$G$3:$G$7,0)),IFERROR(INDEX(Tabelle1!$D$3:$D$7,MATCH(B11,Tabelle1!$E$3:$E$7,0)),"Nicht gefunden")))) -> Willi | B11: =LARGE(Tabelle1!$D$3:$L$7,ROW()-2) -> 0.59
A12: =IFERROR(INDEX(Tabelle1!$I$3:$I$7,MATCH(B12,Tabelle1!$J$3:$J$7,0)),IFERROR(INDEX(Tabelle1!$K$3:$K$7,MATCH(B12,Tabelle1!$L$3:$L$7,0)),IFERROR(INDEX(Tabelle1!$F$3:$F$7,MATCH(B12,Tabelle1!$G$3:$G$7,0)),IFERROR(INDEX(Tabelle1!$D$3:$D$7,MATCH(B12,Tabelle1!$E$3:$E$7,0)),"Nicht gefunden")))) -> Marec | B12: =LARGE(Tabelle1!$D$3:$L$7,ROW()-2) -> 0.56
A13: =IFERROR(INDEX(Tabelle1!$I$3:$I$7,MATCH(B13,Tabelle1!$J$3:$J$7,0)),IFERROR(INDEX(Tabelle1!$K$3:$K$7,MATCH(B13,Tabelle1!$L$3:$L$7,0)),IFERROR(INDEX(Tabelle1!$F$3:$F$7,MATCH(B13,Tabelle1!$G$3:$G$7,0)),IFERROR(INDEX(Tabelle1!$D$3:$D$7,MATCH(B13,Tabelle1!$E$3:$E$7,0)),"Nicht gefunden")))) -> Kurt | B13: =LARGE(Tabelle1!$D$3:$L$7,ROW()-2) -> 0.19
A14: =IFERROR(INDEX(Tabelle1!$I$3:$I$7,MATCH(B14,Tabelle1!$J$3:$J$7,0)),IFERROR(INDEX(Tabelle1!$K$3:$K$7,MATCH(B14,Tabelle1!$L$3:$L$7,0)),IFERROR(INDEX(Tabelle1!$F$3:$F$7,MATCH(B14,Tabelle1!$G$3:$G$7,0)),IFERROR(INDEX(Tabelle1!$D$3:$D$7,MATCH(B14,Tabelle1!$E$3:$E$7,0)),"Nicht gefunden")))) -> Franz | B14: =LARGE(Tabelle1!$D$3:$L$7,ROW()-2) -> 0.18
A15: =IFERROR(INDEX(Tabelle1!$I$3:$I$7,MATCH(B15,Tabelle1!$J$3:$J$7,0)),IFERROR(INDEX(Tabelle1!$K$3:$K$7,MATCH(B15,Tabelle1!$L$3:$L$7,0)),IFERROR(INDEX(Tabelle1!$F$3:$F$7,MATCH(B15,Tabelle1!$G$3:$G$7,0)),IFERROR(INDEX(Tabelle1!$D$3:$D$7,MATCH(B15,Tabelle1!$E$3:$E$7,0)),"Nicht gefunden")))) -> Bernd | B15: =LARGE(Tabelle1!$D$3:$L$7,ROW()-2) -> 0.16
A16: =IFERROR(INDEX(Tabelle1!$I$3:$I$7,MATCH(B16,Tabelle1!$J$3:$J$7,0)),IFERROR(INDEX(Tabelle1!$K$3:$K$7,MATCH(B16,Tabelle1!$L$3:$L$7,0)),IFERROR(INDEX(Tabelle1!$F$3:$F$7,MATCH(B16,Tabelle1!$G$3:$G$7,0)),IFERROR(INDEX(Tabelle1!$D$3:$D$7,MATCH(B16,Tabelle1!$E$3:$E$7,0)),"Nicht gefunden")))) -> Georg | B16: =LARGE(Tabelle1!$D$3:$L$7,ROW()-2) -> 0.14
A17: =IFERROR(INDEX(Tabelle1!$I$3:$I$7,MATCH(B17,Tabelle1!$J$3:$J$7,0)),IFERROR(INDEX(Tabelle1!$K$3:$K$7,MATCH(B17,Tabelle1!$L$3:$L$7,0)),IFERROR(INDEX(Tabelle1!$F$3:$F$7,MATCH(B17,Tabelle1!$G$3:$G$7,0)),IFERROR(INDEX(Tabelle1!$D$3:$D$7,MATCH(B17,Tabelle1!$E$3:$E$7,0)),"Nicht gefunden")))) -> Jens | B17: =LARGE(Tabelle1!$D$3:$L$7,ROW()-2) -> 0.11
A18: =IFERROR(INDEX(Tabelle1!$I$3:$I$7,MATCH(B18,Tabelle1!$J$3:$J$7,0)),IFERROR(INDEX(Tabelle1!$K$3:$K$7,MATCH(B18,Tabelle1!$L$3:$L$7,0)),IFERROR(INDEX(Tabelle1!$F$3:$F$7,MATCH(B18,Tabelle1!$G$3:$G$7,0)),IFERROR(INDEX(Tabelle1!$D$3:$D$7,MATCH(B18,Tabelle1!$E$3:$E$7,0)),"Nicht gefunden")))) -> Dieter | B18: =LARGE(Tabelle1!$D$3:$L$7,ROW()-2) -> 0.1
A19: =IFERROR(INDEX(Tabelle1!$I$3:$I$7,MATCH(B19,Tabelle1!$J$3:$J$7,0)),IFERROR(INDEX(Tabelle1!$K$3:$K$7,MATCH(B19,Tabelle1!$L$3:$L$7,0)),IFERROR(INDEX(Tabelle1!$F$3:$F$7,MATCH(B19,Tabelle1!$G$3:$G$7,0)),IFERROR(INDEX(Tabelle1!$D$3:$D$7,MATCH(B19,Tabelle1!$E$3:$E$7,0)),"Nicht gefunden")))) -> Mario | B19: =LARGE(Tabelle1!$D$3:$L$7,ROW()-2) -> 0.07
A20: =IFERROR(INDEX(Tabelle1!$I$3:$I$7,MATCH(B20,Tabelle1!$J$3:$J$7,0)),IFERROR(INDEX(Tabelle1!$K$3:$K$7,MATCH(B20,Tabelle1!$L$3:$L$7,0)),IFERROR(INDEX(Tabelle1!$F$3:$F$7,MATCH(B20,Tabelle1!$G$3:$G$7,0)),IFERROR(INDEX(Tabelle1!$D$3:$D$7,MATCH(B20,Tabelle1!$E$3:$E$7,0)),"Nicht gefunden")))) -> Peter | B20: =LARGE(Tabelle1!$D$3:$L$7,ROW()-2) -> 0.05
A21: =IFERROR(INDEX(Tabelle1!$I$3:$I$7,MATCH(B21,Tabelle1!$J$3:$J$7,0)),IFERROR(INDEX(Tabelle1!$K$3:$K$7,MATCH(B21,Tabelle1!$L$3:$L$7,0)),IFERROR(INDEX(Tabelle1!$F$3:$F$7,MATCH(B21,Tabelle1!$G$3:$G$7,0)),IFERROR(INDEX(Tabelle1!$D$3:$D$7,MATCH(B21,Tabelle1!$E$3:$E$7,0)),"Nicht gefunden")))) -> Christoph | B21: =LARGE(Tabelle1!$D$3:$L$7,ROW()-2) -> 0.03
A22: =IFERROR(INDEX(Tabelle1!$I$3:$I$7,MATCH(B22,Tabelle1!$J$3:$J$7,0)),IFERROR(INDEX(Tabelle1!$K$3:$K$7,MATCH(B22,Tabelle1!$L$3:$L$7,0)),IFERROR(INDEX(Tabelle1!$F$3:$F$7,MATCH(B22,Tabelle1!$G$3:$G$7,0)),IFERROR(INDEX(Tabelle1!$D$3:$D$7,MATCH(B22,Tabelle1!$E$3:$E$7,0)),"Nicht gefunden")))) -> Sören | B22: =LARGE(Tabelle1!$D$3:$L$7,ROW()-2) -> 0.02

Sheet Tabelle3
A1: Spielernamen (Reihenfolge wird ausgelost) | B1: Wert aus bisher gespielten Spielen | D1: Team 1 | E1: Punktevergabe nach dem Spiel | F1: Team 1 | G1: Punktevergabe nach dem Spiel | H1: gegen | I1: Team 2 | J1: Punktevergabe nach dem Spiel | K1: Team 2 | L1: Punktevergabe nach dem Spiel | M1: Ergebnis per Hand – nur Statistik | N1: Punkte TEAM1 | O1: Punkte TEAM2
A3: =IFERROR(INDEX(Tabelle2!$I$3:$I$7,MATCH(B3,Tabelle2!$J$3:$J$7,0)),IFERROR(INDEX(Tabelle2!$K$3:$K$7,MATCH(B3,Tabelle2!$L$3:$L$7,0)),IFERROR(INDEX(Tabelle2!$F$3:$F$7,MATCH(B3,Tabelle2!$G$3:$G$7,0)),IFERROR(INDEX(Tabelle2!$D$3:$D$7,MATCH(B3,Tabelle2!$E$3:$E$7,0)),"Nicht gefunden")))) -> Rudi | B3: =LARGE(Tabelle2!$D$3:$L$7,ROW()-2) -> 3.04 | D3: =INDEX($A$3:$A$22,MATCH(LARGE($B$3:$B$22,1),$B$3:$B$22,0)) -> Rudi | E3: =VLOOKUP(D3,$A$3:$B$22,2,0)+$N3 -> 4.04 | F3: =INDEX($A$3:$A$22,MATCH(SMALL($B$3:$B$22,1),$B$3:$B$22,0)) -> Christoph | G3: =VLOOKUP(F3,$A$3:$B$22,2,0)+$N3 -> 1.03 | I3: =INDEX($A$3:$A$22,MATCH(LARGE($B$3:$B$22,2),$B$3:$B$22,0)) -> Günther | J3: =VLOOKUP(I3,$A$3:$B$22,2,0)+$O3 -> 2.67 | K3: =INDEX($A$3:$A$22,MATCH(SMALL($B$3:$B$22,2),$B$3:$B$22,0)) -> Peter | L3: =VLOOKUP(K3,$A$3:$B$22,2,0)+$O3 -> 0.05 | M3: 21 zu 12 | N3: 1 | O3: 0
A4: =IFERROR(INDEX(Tabelle2!$I$3:$I$7,MATCH(B4,Tabelle2!$J$3:$J$7,0)),IFERROR(INDEX(Tabelle2!$K$3:$K$7,MATCH(B4,Tabelle2!$L$3:$L$7,0)),IFERROR(INDEX(Tabelle2!$F$3:$F$7,MATCH(B4,Tabelle2!$G$3:$G$7,0)),IFERROR(INDEX(Tabelle2!$D$3:$D$7,MATCH(B4,Tabelle2!$E$3:$E$7,0)),"Nicht gefunden")))) -> Günther | B4: =LARGE(Tabelle2!$D$3:$L$7,ROW()-2) -> 2.67 | D4: =INDEX($A$3:$A$22,MATCH(LARGE($B$3:$B$22,3),$B$3:$B$22,0)) -> Wolfgang | E4: =VLOOKUP(D4,$A$3:$B$22,2,0)+$N4 -> 2.12 | F4: =INDEX($A$3:$A$22,MATCH(SMALL($B$3:$B$22,3),$B$3:$B$22,0)) -> Dieter | G4: 0.1 | I4: =INDEX($A$3:$A$22,MATCH(LARGE($B$3:$B$22,4),$B$3:$B$22,0)) -> Bernd | J4: =VLOOKUP(I4,$A$3:$B$22,2,0)+$O4 -> 3.16 | K4: =INDEX($A$3:$A$22,MATCH(SMALL($B$3:$B$22,4),$B$3:$B$22,0)) -> Georg | L4: 1.64 | M4: 6 zu 21 | N4: 0 | O4: 1.5
A5: =IFERROR(INDEX(Tabelle2!$I$3:$I$7,MATCH(B5,Tabelle2!$J$3:$J$7,0)),IFERROR(INDEX(Tabelle2!$K$3:$K$7,MATCH(B5,Tabelle2!$L$3:$L$7,0)),IFERROR(INDEX(Tabelle2!$F$3:$F$7,MATCH(B5,Tabelle2!$G$3:$G$7,0)),IFERROR(INDEX(Tabelle2!$D$3:$D$7,MATCH(B5,Tabelle2!$E$3:$E$7,0)),"Nicht gefunden")))) -> Wolfgang | B5: =LARGE(Tabelle2!$D$3:$L$7,ROW()-2) -> 2.12 | D5: =INDEX($A$3:$A$22,MATCH(LARGE($B$3:$B$22,5),$B$3:$B$22,0)) -> Henrik | E5: 1.63 | F5: =INDEX($A$3:$A$22,MATCH(SMALL($B$3:$B$22,5),$B$3:$B$22,0)) -> Kurt | G5: 0.19 | I5: =INDEX($A$3:$A$22,MATCH(LARGE($B$3:$B$22,6),$B$3:$B$22,0)) -> Timo | J5: 2.08 | K5: =INDEX($A$3:$A$22,MATCH(SMALL($B$3:$B$22,6),$B$3:$B$22,0)) -> Marec | L5: 1.06 | M5: 19 zu 21 | N5: 0 | O5: 0.5
A6: =IFERROR(INDEX(Tabelle2!$I$3:$I$7,MATCH(B6,Tabelle2!$J$3:$J$7,0)),IFERROR(INDEX(Tabelle2!$K$3:$K$7,MATCH(B6,Tabelle2!$L$3:$L$7,0)),IFERROR(INDEX(Tabelle2!$F$3:$F$7,MATCH(B6,Tabelle2!$G$3:$G$7,0)),IFERROR(INDEX(Tabelle2!$D$3:$D$7,MATCH(B6,Tabelle2!$E$3:$E$7,0)),"Nicht gefunden")))) -> Bernd | B6: =LARGE(Tabelle2!$D$3:$L$7,ROW()-2) -> 1.66 | D6: =INDEX($A$3:$A$22,MATCH(LARGE($B$3:$B$22,7),$B$3:$B$22,0)) -> Mario | E6: 1.57 | F6: =INDEX($A$3:$A$22,MATCH(SMALL($B$3:$B$22,7),$B$3:$B$22,0)) -> Jens | G6: 0.61 | I6: =INDEX($A$3:$A$22,MATCH(LARGE($B$3:$B$22,8),$B$3:$B$22,0)) -> Manfred | J6: 3.01 | K6: =INDEX($A$3:$A$22,MATCH(SMALL($B$3:$B$22,8),$B$3:$B$22,0)) -> Ralf | L6: 2.15 | M6: 8 zu 21 | N6: 0 | O6: 1.5
A7: =IFERROR(INDEX(Tabelle2!$I$3:$I$7,MATCH(B7,Tabelle2!$J$3:$J$7,0)),IFERROR(INDEX(Tabelle2!$K$3:$K$7,MATCH(B7,Tabelle2!$L$3:$L$7,0)),IFERROR(INDEX(Tabelle2!$F$3:$F$7,MATCH(B7,Tabelle2!$G$3:$G$7,0)),IFERROR(INDEX(Tabelle2!$D$3:$D$7,MATCH(B7,Tabelle2!$E$3:$E$7,0)),"Nicht gefunden")))) -> Henrik | B7: =LARGE(Tabelle2!$D$3:$L$7,ROW()-2) -> 1.63 | D7: =INDEX($A$3:$A$22,MATCH(LARGE($B$3:$B$22,9),$B$3:$B$22,0)) -> Henry | E7: 1.7 | F7: =INDEX($A$3:$A$22,MATCH(SMALL($B$3:$B$22,9),$B$3:$B$22,0)) -> Franz | G7: 1.18 | I7: =INDEX($A$3:$A$22,MATCH(LARGE($B$3:$B$22,10),$B$3:$B$22,0)) -> Willi | J7: 1.09 | K7: =INDEX($A$3:$A$22,MATCH(SMALL($B$3:$B$22,10),$B$3:$B$22,0)) -> Sören | L7: 1.02 | M7: 21 zu 19 | N7: 0.5 | O7: 0
A8: =IFERROR(INDEX(Tabelle2!$I$3:$I$7,MATCH(B8,Tabelle2!$J$3:$J$7,0)),IFERROR(INDEX(Tabelle2!$K$3:$K$7,MATCH(B8,Tabelle2!$L$3:$L$7,0)),IFERROR(INDEX(Tabelle2!$F$3:$F$7,MATCH(B8,Tabelle2!$G$3:$G$7,0)),IFERROR(INDEX(Tabelle2!$D$3:$D$7,MATCH(B8,Tabelle2!$E$3:$E$7,0)),"Nicht gefunden")))) -> Timo | B8: =LARGE(Tabelle2!$D$3:$L$7,ROW()-2) -> 1.58
A9: =IFERROR(INDEX(Tabelle2!$I$3:$I$7,MATCH(B9,Tabelle2!$J$3:$J$7,0)),IFERROR(INDEX(Tabelle2!$K$3:$K$7,MATCH(B9,Tabelle2!$L$3:$L$7,0)),IFERROR(INDEX(Tabelle2!$F$3:$F$7,MATCH(B9,Tabelle2!$G$3:$G$7,0)),IFERROR(INDEX(Tabelle2!$D$3:$D$7,MATCH(B9,Tabelle2!$E$3:$E$7,0)),"Nicht gefunden")))) -> Mario | B9: =LARGE(Tabelle2!$D$3:$L$7,ROW()-2) -> 1.57
A10: =IFERROR(INDEX(Tabelle2!$I$3:$I$7,MATCH(B10,Tabelle2!$J$3:$J$7,0)),IFERROR(INDEX(Tabelle2!$K$3:$K$7,MATCH(B10,Tabelle2!$L$3:$L$7,0)),IFERROR(INDEX(Tabelle2!$F$3:$F$7,MATCH(B10,Tabelle2!$G$3:$G$7,0)),IFERROR(INDEX(Tabelle2!$D$3:$D$7,MATCH(B10,Tabelle2!$E$3:$E$7,0)),"Nicht gefunden")))) -> Manfred | B10: =LARGE(Tabelle2!$D$3:$L$7,ROW()-2) -> 1.51
A11: =IFERROR(INDEX(Tabelle2!$I$3:$I$7,MATCH(B11,Tabelle2!$J$3:$J$7,0)),IFERROR(INDEX(Tabelle2!$K$3:$K$7,MATCH(B11,Tabelle2!$L$3:$L$7,0)),IFERROR(INDEX(Tabelle2!$F$3:$F$7,MATCH(B11,Tabelle2!$G$3:$G$7,0)),IFERROR(INDEX(Tabelle2!$D$3:$D$7,MATCH(B11,Tabelle2!$E$3:$E$7,0)),"Nicht gefunden")))) -> Henry | B11: =LARGE(Tabelle2!$D$3:$L$7,ROW()-2) -> 1.2
A12: =IFERROR(INDEX(Tabelle2!$I$3:$I$7,MATCH(B12,Tabelle2!$J$3:$J$7,0)),IFERROR(INDEX(Tabelle2!$K$3:$K$7,MATCH(B12,Tabelle2!$L$3:$L$7,0)),IFERROR(INDEX(Tabelle2!$F$3:$F$7,MATCH(B12,Tabelle2!$G$3:$G$7,0)),IFERROR(INDEX(Tabelle2!$D$3:$D$7,MATCH(B12,Tabelle2!$E$3:$E$7,0)),"Nicht gefunden")))) -> Willi | B12: =LARGE(Tabelle2!$D$3:$L$7,ROW()-2) -> 1.09
A13: =IFERROR(INDEX(Tabelle2!$I$3:$I$7,MATCH(B13,Tabelle2!$J$3:$J$7,0)),IFERROR(INDEX(Tabelle2!$K$3:$K$7,MATCH(B13,Tabelle2!$L$3:$L$7,0)),IFERROR(INDEX(Tabelle2!$F$3:$F$7,MATCH(B13,Tabelle2!$G$3:$G$7,0)),IFERROR(INDEX(Tabelle2!$D$3:$D$7,MATCH(B13,Tabelle2!$E$3:$E$7,0)),"Nicht gefunden")))) -> Sören | B13: =LARGE(Tabelle2!$D$3:$L$7,ROW()-2) -> 1.02
A14: =IFERROR(INDEX(Tabelle2!$I$3:$I$7,MATCH(B14,Tabelle2!$J$3:$J$7,0)),IFERROR(INDEX(Tabelle2!$K$3:$K$7,MATCH(B14,Tabelle2!$L$3:$L$7,0)),IFERROR(INDEX(Tabelle2!$F$3:$F$7,MATCH(B14,Tabelle2!$G$3:$G$7,0)),IFERROR(INDEX(Tabelle2!$D$3:$D$7,MATCH(B14,Tabelle2!$E$3:$E$7,0)),"Nicht gefunden")))) -> Franz | B14: =LARGE(Tabelle2!$D$3:$L$7,ROW()-2) -> 0.68
A15: =IFERROR(INDEX(Tabelle2!$I$3:$I$7,MATCH(B15,Tabelle2!$J$3:$J$7,0)),IFERROR(INDEX(Tabelle2!$K$3:$K$7,MATCH(B15,Tabelle2!$L$3:$L$7,0)),IFERROR(INDEX(Tabelle2!$F$3:$F$7,MATCH(B15,Tabelle2!$G$3:$G$7,0)),IFERROR(INDEX(Tabelle2!$D$3:$D$7,MATCH(B15,Tabelle2!$E$3:$E$7,0)),"Nicht gefunden")))) -> Ralf | B15: =LARGE(Tabelle2!$D$3:$L$7,ROW()-2) -> 0.65
A16: =IFERROR(INDEX(Tabelle2!$I$3:$I$7,MATCH(B16,Tabelle2!$J$3:$J$7,0)),IFERROR(INDEX(Tabelle2!$K$3:$K$7,MATCH(B16,Tabelle2!$L$3:$L$7,0)),IFERROR(INDEX(Tabelle2!$F$3:$F$7,MATCH(B16,Tabelle2!$G$3:$G$7,0)),IFERROR(INDEX(Tabelle2!$D$3:$D$7,MATCH(B16,Tabelle2!$E$3:$E$7,0)),"Nicht gefunden")))) -> Jens | B16: =LARGE(Tabelle2!$D$3:$L$7,ROW()-2) -> 0.61
A17: =IFERROR(INDEX(Tabelle2!$I$3:$I$7,MATCH(B17,Tabelle2!$J$3:$J$7,0)),IFERROR(INDEX(Tabelle2!$K$3:$K$7,MATCH(B17,Tabelle2!$L$3:$L$7,0)),IFERROR(INDEX(Tabelle2!$F$3:$F$7,MATCH(B17,Tabelle2!$G$3:$G$7,0)),IFERROR(INDEX(Tabelle2!$D$3:$D$7,MATCH(B17,Tabelle2!$E$3:$E$7,0)),"Nicht gefunden")))) -> Marec | B17: =LARGE(Tabelle2!$D$3:$L$7,ROW()-2) -> 0.56
A18: =IFERROR(INDEX(Tabelle2!$I$3:$I$7,MATCH(B18,Tabelle2!$J$3:$J$7,0)),IFERROR(INDEX(Tabelle2!$K$3:$K$7,MATCH(B18,Tabelle2!$L$3:$L$7,0)),IFERROR(INDEX(Tabelle2!$F$3:$F$7,MATCH(B18,Tabelle2!$G$3:$G$7,0)),IFERROR(INDEX(Tabelle2!$D$3:$D$7,MATCH(B18,Tabelle2!$E$3:$E$7,0)),"Nicht gefunden")))) -> Kurt | B18: =LARGE(Tabelle2!$D$3:$L$7,ROW()-2) -> 0.19
A19: =IFERROR(INDEX(Tabelle2!$I$3:$I$7,MATCH(B19,Tabelle2!$J$3:$J$7,0)),IFERROR(INDEX(Tabelle2!$K$3:$K$7,MATCH(B19,Tabelle2!$L$3:$L$7,0)),IFERROR(INDEX(Tabelle2!$F$3:$F$7,MATCH(B19,Tabelle2!$G$3:$G$7,0)),IFERROR(INDEX(Tabelle2!$D$3:$D$7,MATCH(B19,Tabelle2!$E$3:$E$7,0)),"Nicht gefunden")))) -> Georg | B19: =LARGE(Tabelle2!$D$3:$L$7,ROW()-2) -> 0.14
A20: =IFERROR(INDEX(Tabelle2!$I$3:$I$7,MATCH(B20,Tabelle2!$J$3:$J$7,0)),IFERROR(INDEX(Tabelle2!$K$3:$K$7,MATCH(B20,Tabelle2!$L$3:$L$7,0)),IFERROR(INDEX(Tabelle2!$F$3:$F$7,MATCH(B20,Tabelle2!$G$3:$G$7,0)),IFERROR(INDEX(Tabelle2!$D$3:$D$7,MATCH(B20,Tabelle2!$E$3:$E$7,0)),"Nicht gefunden")))) -> Dieter | B20: =LARGE(Tabelle2!$D$3:$L$7,ROW()-2) -> 0.1
A21: =IFERROR(INDEX(Tabelle2!$I$3:$I$7,MATCH(B21,Tabelle2!$J$3:$J$7,0)),IFERROR(INDEX(Tabelle2!$K$3:$K$7,MATCH(B21,Tabelle2!$L$3:$L$7,0)),IFERROR(INDEX(Tabelle2!$F$3:$F$7,MATCH(B21,Tabelle2!$G$3:$G$7,0)),IFERROR(INDEX(Tabelle2!$D$3:$D$7,MATCH(B21,Tabelle2!$E$3:$E$7,0)),"Nicht gefunden")))) -> Peter | B21: =LARGE(Tabelle2!$D$3:$L$7,ROW()-2) -> 0.05
A22: =IFERROR(INDEX(Tabelle2!$I$3:$I$7,MATCH(B22,Tabelle2!$J$3:$J$7,0)),IFERROR(INDEX(Tabelle2!$K$3:$K$7,MATCH(B22,Tabelle2!$L$3:$L$7,0)),IFERROR(INDEX(Tabelle2!$F$3:$F$7,MATCH(B22,Tabelle2!$G$3:$G$7,0)),IFERROR(INDEX(Tabelle2!$D$3:$D$7,MATCH(B22,Tabelle2!$E$3:$E$7,0)),"Nicht gefunden")))) -> Christoph | B22: =LARGE(Tabelle2!$D$3:$L$7,ROW()-2) -> 0.03

Sheet Tabelle4
A1: Spielernamen (Reihenfolge wird ausgelost) | B1: Wert aus bisher gespielten Spielen | D1: Team 1 | E1: Punktevergabe nach dem Spiel | F1: Team 1 | G1: Punktevergabe nach dem Spiel | H1: gegen | I1: Team 2 | J1: Punktevergabe nach dem Spiel | K1: Team 2 | L1: Punktevergabe nach dem Spiel | M1: Ergebnis per Hand – nur Statistik | N1: Punkte TEAM1 | O1: Punkte TEAM2
A3: =IFERROR(INDEX(Tabelle3!$I$3:$I$7,MATCH(B3,Tabelle3!$J$3:$J$7,0)),IFERROR(INDEX(Tabelle3!$K$3:$K$7,MATCH(B3,Tabelle3!$L$3:$L$7,0)),IFERROR(INDEX(Tabelle3!$F$3:$F$7,MATCH(B3,Tabelle3!$G$3:$G$7,0)),IFERROR(INDEX(Tabelle3!$D$3:$D$7,MATCH(B3,Tabelle3!$E$3:$E$7,0)),"Nicht gefunden")))) -> Rudi | B3: =LARGE(Tabelle3!$D$3:$L$7,ROW()-2) -> 4.04 | D3: =INDEX($A$3:$A$22,MATCH(LARGE($B$3:$B$22,1),$B$3:$B$22,0)) -> Rudi | E3: =VLOOKUP(D3,$A$3:$B$22,2,0)+$N3 -> 5.04 | F3: =INDEX($A$3:$A$22,MATCH(SMALL($B$3:$B$22,1),$B$3:$B$22,0)) -> Peter | G3: =VLOOKUP(F3,$A$3:$B$22,2,0)+$N3 -> 1.05 | I3: =INDEX($A$3:$A$22,MATCH(LARGE($B$3:$B$22,2),$B$3:$B$22,0)) -> Bernd | J3: =VLOOKUP(I3,$A$3:$B$22,2,0)+$O3 -> 3.16 | K3: =INDEX($A$3:$A$22,MATCH(SMALL($B$3:$B$22,2),$B$3:$B$22,0)) -> Dieter | L3: =VLOOKUP(K3,$A$3:$B$22,2,0)+$O3 -> 0.1 | M3: 21 zu 12 | N3: 1 | O3: 0
A4: =IFERROR(INDEX(Tabelle3!$I$3:$I$7,MATCH(B4,Tabelle3!$J$3:$J$7,0)),IFERROR(INDEX(Tabelle3!$K$3:$K$7,MATCH(B4,Tabelle3!$L$3:$L$7,0)),IFERROR(INDEX(Tabelle3!$F$3:$F$7,MATCH(B4,Tabelle3!$G$3:$G$7,0)),IFERROR(INDEX(Tabelle3!$D$3:$D$7,MATCH(B4,Tabelle3!$E$3:$E$7,0)),"Nicht gefunden")))) -> Bernd | B4: =LARGE(Tabelle3!$D$3:$L$7,ROW()-2) -> 3.16 | D4: =INDEX($A$3:$A$22,MATCH(LARGE($B$3:$B$22,3),$B$3:$B$22,0)) -> Manfred | E4: =VLOOKUP(D4,$A$3:$B$22,2,0)+$N4 -> 3.01 | F4: =INDEX($A$3:$A$22,MATCH(SMALL($B$3:$B$22,3),$B$3:$B$22,0)) -> Kurt | G4: 0.19 | I4: =INDEX($A$3:$A$22,MATCH(LARGE($B$3:$B$22,4),$B$3:$B$22,0)) -> Günther | J4: =VLOOKUP(I4,$A$3:$B$22,2,0)+$O4 -> 4.17 | K4: =INDEX($A$3:$A$22,MATCH(SMALL($B$3:$B$22,4),$B$3:$B$22,0)) -> Jens | L4: 2.11 | M4: 6 zu 21 | N4: 0 | O4: 1.5
A5: =IFERROR(INDEX(Tabelle3!$I$3:$I$7,MATCH(B5,Tabelle3!$J$3:$J$7,0)),IFERROR(INDEX(Tabelle3!$K$3:$K$7,MATCH(B5,Tabelle3!$L$3:$L$7,0)),IFERROR(INDEX(Tabelle3!$F$3:$F$7,MATCH(B5,Tabelle3!$G$3:$G$7,0)),IFERROR(INDEX(Tabelle3!$D$3:$D$7,MATCH(B5,Tabelle3!$E$3:$E$7,0)),"Nicht gefunden")))) -> Manfred | B5: =LARGE(Tabelle3!$D$3:$L$7,ROW()-2) -> 3.01 | D5: =INDEX($A$3:$A$22,MATCH(LARGE($B$3:$B$22,5),$B$3:$B$22,0)) -> Ralf | E5: 2.15 | F5: =INDEX($A$3:$A$22,MATCH(SMALL($B$3:$B$22,5),$B$3:$B$22,0)) -> Sören | G5: 1.02 | I5: =INDEX($A$3:$A$22,MATCH(LARGE($B$3:$B$22,6),$B$3:$B$22,0)) -> Wolfgang | J5: 2.62 | K5: =INDEX($A$3:$A$22,MATCH(SMALL($B$3:$B$22,6),$B$3:$B$22,0)) -> Christoph | L5: 1.53 | M5: 19 zu 21 | N5: 0 | O5: 0.5
A6: =IFERROR(INDEX(Tabelle3!$I$3:$I$7,MATCH(B6,Tabelle3!$J$3:$J$7,0)),IFERROR(INDEX(Tabelle3!$K$3:$K$7,MATCH(B6,Tabelle3!$L$3:$L$7,0)),IFERROR(INDEX(Tabelle3!$F$3:$F$7,MATCH(B6,Tabelle3!$G$3:$G$7,0)),IFERROR(INDEX(Tabelle3!$D$3:$D$7,MATCH(B6,Tabelle3!$E$3:$E$7,0)),"Nicht gefunden")))) -> Günther | B6: =LARGE(Tabelle3!$D$3:$L$7,ROW()-2) -> 2.67 | D6: =INDEX($A$3:$A$22,MATCH(LARGE($B$3:$B$22,7),$B$3:$B$22,0)) -> Timo | E6: 2.08 | F6: =INDEX($A$3:$A$22,MATCH(SMALL($B$3:$B$22,7),$B$3:$B$22,0)) -> Marec | G6: 1.06 | I6: =INDEX($A$3:$A$22,MATCH(LARGE($B$3:$B$22,8),$B$3:$B$22,0)) -> Henry | J6: 3.2 | K6: =INDEX($A$3:$A$22,MATCH(SMALL($B$3:$B$22,8),$B$3:$B$22,0)) -> Willi | L6: 2.59 | M6: 8 zu 21 | N6: 0 | O6: 1.5
A7: =IFERROR(INDEX(Tabelle3!$I$3:$I$7,MATCH(B7,Tabelle3!$J$3:$J$7,0)),IFERROR(INDEX(Tabelle3!$K$3:$K$7,MATCH(B7,Tabelle3!$L$3:$L$7,0)),IFERROR(INDEX(Tabelle3!$F$3:$F$7,MATCH(B7,Tabelle3!$G$3:$G$7,0)),IFERROR(INDEX(Tabelle3!$D$3:$D$7,MATCH(B7,Tabelle3!$E$3:$E$7,0)),"Nicht gefunden")))) -> Ralf | B7: =LARGE(Tabelle3!$D$3:$L$7,ROW()-2) -> 2.15 | D7: =INDEX($A$3:$A$22,MATCH(LARGE($B$3:$B$22,9),$B$3:$B$22,0)) -> Georg | E7: 2.14 | F7: =INDEX($A$3:$A$22,MATCH(SMALL($B$3:$B$22,9),$B$3:$B$22,0)) -> Franz | G7: 1.68 | I7: =INDEX($A$3:$A$22,MATCH(LARGE($B$3:$B$22,10),$B$3:$B$22,0)) -> Henrik | J7: 1.63 | K7: =INDEX($A$3:$A$22,MATCH(SMALL($B$3:$B$22,10),$B$3:$B$22,0)) -> Mario | L7: 1.57 | M7: 21 zu 19 | N7: 0.5 | O7: 0
A8: =IFERROR(INDEX(Tabelle3!$I$3:$I$7,MATCH(B8,Tabelle3!$J$3:$J$7,0)),IFERROR(INDEX(Tabelle3!$K$3:$K$7,MATCH(B8,Tabelle3!$L$3:$L$7,0)),IFERROR(INDEX(Tabelle3!$F$3:$F$7,MATCH(B8,Tabelle3!$G$3:$G$7,0)),IFERROR(INDEX(Tabelle3!$D$3:$D$7,MATCH(B8,Tabelle3!$E$3:$E$7,0)),"Nicht gefunden")))) -> Wolfgang | B8: =LARGE(Tabelle3!$D$3:$L$7,ROW()-2) -> 2.12
A9: =IFERROR(INDEX(Tabelle3!$I$3:$I$7,MATCH(B9,Tabelle3!$J$3:$J$7,0)),IFERROR(INDEX(Tabelle3!$K$3:$K$7,MATCH(B9,Tabelle3!$L$3:$L$7,0)),IFERROR(INDEX(Tabelle3!$F$3:$F$7,MATCH(B9,Tabelle3!$G$3:$G$7,0)),IFERROR(INDEX(Tabelle3!$D$3:$D$7,MATCH(B9,Tabelle3!$E$3:$E$7,0)),"Nicht gefunden")))) -> Timo | B9: =LARGE(Tabelle3!$D$3:$L$7,ROW()-2) -> 2.08
A10: =IFERROR(INDEX(Tabelle3!$I$3:$I$7,MATCH(B10,Tabelle3!$J$3:$J$7,0)),IFERROR(INDEX(Tabelle3!$K$3:$K$7,MATCH(B10,Tabelle3!$L$3:$L$7,0)),IFERROR(INDEX(Tabelle3!$F$3:$F$7,MATCH(B10,Tabelle3!$G$3:$G$7,0)),IFERROR(INDEX(Tabelle3!$D$3:$D$7,MATCH(B10,Tabelle3!$E$3:$E$7,0)),"Nicht gefunden")))) -> Henry | B10: =LARGE(Tabelle3!$D$3:$L$7,ROW()-2) -> 1.7
A11: =IFERROR(INDEX(Tabelle3!$I$3:$I$7,MATCH(B11,Tabelle3!$J$3:$J$7,0)),IFERROR(INDEX(Tabelle3!$K$3:$K$7,MATCH(B11,Tabelle3!$L$3:$L$7,0)),IFERROR(INDEX(Tabelle3!$F$3:$F$7,MATCH(B11,Tabelle3!$G$3:$G$7,0)),IFERROR(INDEX(Tabelle3!$D$3:$D$7,MATCH(B11,Tabelle3!$E$3:$E$7,0)),"Nicht gefunden")))) -> Georg | B11: =LARGE(Tabelle3!$D$3:$L$7,ROW()-2) -> 1.64
A12: =IFERROR(INDEX(Tabelle3!$I$3:$I$7,MATCH(B12,Tabelle3!$J$3:$J$7,0)),IFERROR(INDEX(Tabelle3!$K$3:$K$7,MATCH(B12,Tabelle3!$L$3:$L$7,0)),IFERROR(INDEX(Tabelle3!$F$3:$F$7,MATCH(B12,Tabelle3!$G$3:$G$7,0)),IFERROR(INDEX(Tabelle3!$D$3:$D$7,MATCH(B12,Tabelle3!$E$3:$E$7,0)),"Nicht gefunden")))) -> Henrik | B12: =LARGE(Tabelle3!$D$3:$L$7,ROW()-2) -> 1.63
A13: =IFERROR(INDEX(Tabelle3!$I$3:$I$7,MATCH(B13,Tabelle3!$J$3:$J$7,0)),IFERROR(INDEX(Tabelle3!$K$3:$K$7,MATCH(B13,Tabelle3!$L$3:$L$7,0)),IFERROR(INDEX(Tabelle3!$F$3:$F$7,MATCH(B13,Tabelle3!$G$3:$G$7,0)),IFERROR(INDEX(Tabelle3!$D$3:$D$7,MATCH(B13,Tabelle3!$E$3:$E$7,0)),"Nicht gefunden")))) -> Mario | B13: =LARGE(Tabelle3!$D$3:$L$7,ROW()-2) -> 1.57
A14: =IFERROR(INDEX(Tabelle3!$I$3:$I$7,MATCH(B14,Tabelle3!$J$3:$J$7,0)),IFERROR(INDEX(Tabelle3!$K$3:$K$7,MATCH(B14,Tabelle3!$L$3:$L$7,0)),IFERROR(INDEX(Tabelle3!$F$3:$F$7,MATCH(B14,Tabelle3!$G$3:$G$7,0)),IFERROR(INDEX(Tabelle3!$D$3:$D$7,MATCH(B14,Tabelle3!$E$3:$E$7,0)),"Nicht gefunden")))) -> Franz | B14: =LARGE(Tabelle3!$D$3:$L$7,ROW()-2) -> 1.18
A15: =IFERROR(INDEX(Tabelle3!$I$3:$I$7,MATCH(B15,Tabelle3!$J$3:$J$7,0)),IFERROR(INDEX(Tabelle3!$K$3:$K$7,MATCH(B15,Tabelle3!$L$3:$L$7,0)),IFERROR(INDEX(Tabelle3!$F$3:$F$7,MATCH(B15,Tabelle3!$G$3:$G$7,0)),IFERROR(INDEX(Tabelle3!$D$3:$D$7,MATCH(B15,Tabelle3!$E$3:$E$7,0)),"Nicht gefunden")))) -> Willi | B15: =LARGE(Tabelle3!$D$3:$L$7,ROW()-2) -> 1.09
A16: =IFERROR(INDEX(Tabelle3!$I$3:$I$7,MATCH(B16,Tabelle3!$J$3:$J$7,0)),IFERROR(INDEX(Tabelle3!$K$3:$K$7,MATCH(B16,Tabelle3!$L$3:$L$7,0)),IFERROR(INDEX(Tabelle3!$F$3:$F$7,MATCH(B16,Tabelle3!$G$3:$G$7,0)),IFERROR(INDEX(Tabelle3!$D$3:$D$7,MATCH(B16,Tabelle3!$E$3:$E$7,0)),"Nicht gefunden")))) -> Marec | B16: =LARGE(Tabelle3!$D$3:$L$7,ROW()-2) -> 1.06
A17: =IFERROR(INDEX(Tabelle3!$I$3:$I$7,MATCH(B17,Tabelle3!$J$3:$J$7,0)),IFERROR(INDEX(Tabelle3!$K$3:$K$7,MATCH(B17,Tabelle3!$L$3:$L$7,0)),IFERROR(INDEX(Tabelle3!$F$3:$F$7,MATCH(B17,Tabelle3!$G$3:$G$7,0)),IFERROR(INDEX(Tabelle3!$D$3:$D$7,MATCH(B17,Tabelle3!$E$3:$E$7,0)),"Nicht gefunden")))) -> Christoph | B17: =LARGE(Tabelle3!$D$3:$L$7,ROW()-2) -> 1.03
A18: =IFERROR(INDEX(Tabelle3!$I$3:$I$7,MATCH(B18,Tabelle3!$J$3:$J$7,0)),IFERROR(INDEX(Tabelle3!$K$3:$K$7,MATCH(B18,Tabelle3!$L$3:$L$7,0)),IFERROR(INDEX(Tabelle3!$F$3:$F$7,MATCH(B18,Tabelle3!$G$3:$G$7,0)),IFERROR(INDEX(Tabelle3!$D$3:$D$7,MATCH(B18,Tabelle3!$E$3:$E$7,0)),"Nicht gefunden")))) -> Sören | B18: =LARGE(Tabelle3!$D$3:$L$7,ROW()-2) -> 1.02
A19: =IFERROR(INDEX(Tabelle3!$I$3:$I$7,MATCH(B19,Tabelle3!$J$3:$J$7,0)),IFERROR(INDEX(Tabelle3!$K$3:$K$7,MATCH(B19,Tabelle3!$L$3:$L$7,0)),IFERROR(INDEX(Tabelle3!$F$3:$F$7,MATCH(B19,Tabelle3!$G$3:$G$7,0)),IFERROR(INDEX(Tabelle3!$D$3:$D$7,MATCH(B19,Tabelle3!$E$3:$E$7,0)),"Nicht gefunden")))) -> Jens | B19: =LARGE(Tabelle3!$D$3:$L$7,ROW()-2) -> 0.61
A20: =IFERROR(INDEX(Tabelle3!$I$3:$I$7,MATCH(B20,Tabelle3!$J$3:$J$7,0)),IFERROR(INDEX(Tabelle3!$K$3:$K$7,MATCH(B20,Tabelle3!$L$3:$L$7,0)),IFERROR(INDEX(Tabelle3!$F$3:$F$7,MATCH(B20,Tabelle3!$G$3:$G$7,0)),IFERROR(INDEX(Tabelle3!$D$3:$D$7,MATCH(B20,Tabelle3!$E$3:$E$7,0)),"Nicht gefunden")))) -> Kurt | B20: =LARGE(Tabelle3!$D$3:$L$7,ROW()-2) -> 0.19
A21: =IFERROR(INDEX(Tabelle3!$I$3:$I$7,MATCH(B21,Tabelle3!$J$3:$J$7,0)),IFERROR(INDEX(Tabelle3!$K$3:$K$7,MATCH(B21,Tabelle3!$L$3:$L$7,0)),IFERROR(INDEX(Tabelle3!$F$3:$F$7,MATCH(B21,Tabelle3!$G$3:$G$7,0)),IFERROR(INDEX(Tabelle3!$D$3:$D$7,MATCH(B21,Tabelle3!$E$3:$E$7,0)),"Nicht gefunden")))) -> Dieter | B21: =LARGE(Tabelle3!$D$3:$L$7,ROW()-2) -> 0.1
A22: =IFERROR(INDEX(Tabelle3!$I$3:$I$7,MATCH(B22,Tabelle3!$J$3:$J$7,0)),IFERROR(INDEX(Tabelle3!$K$3:$K$7,MATCH(B22,Tabelle3!$L$3:$L$7,0)),IFERROR(INDEX(Tabelle3!$F$3:$F$7,MATCH(B22,Tabelle3!$G$3:$G$7,0)),IFERROR(INDEX(Tabelle3!$D$3:$D$7,MATCH(B22,Tabelle3!$E$3:$E$7,0)),"Nicht gefunden")))) -> Peter | B22: =LARGE(Tabelle3!$D$3:$L$7,ROW()-2) -> 0.05

Sheet Tabelle5
A1: Spielernamen (Reihenfolge wird ausgelost) | B1: Wert aus bisher gespielten Spielen | D1: Team 1 | E1: Punktevergabe nach dem Spiel | F1: Team 1 | G1: Punktevergabe nach dem Spiel | H1: gegen | I1: Team 2 | J1: Punktevergabe nach dem Spiel | K1: Team 2 | L1: Punktevergabe nach dem Spiel | M1: Ergebnis per Hand – nur Statistik | N1: Punkte TEAM1 | O1: Punkte TEAM2
A3: =IFERROR(INDEX(Tabelle4!$I$3:$I$7,MATCH(B3,Tabelle4!$J$3:$J$7,0)),IFERROR(INDEX(Tabelle4!$K$3:$K$7,MATCH(B3,Tabelle4!$L$3:$L$7,0)),IFERROR(INDEX(Tabelle4!$F$3:$F$7,MATCH(B3,Tabelle4!$G$3:$G$7,0)),IFERROR(INDEX(Tabelle4!$D$3:$D$7,MATCH(B3,Tabelle4!$E$3:$E$7,0)),"Nicht gefunden")))) -> Rudi | B3: =LARGE(Tabelle4!$D$3:$L$7,ROW()-2) -> 5.04 | D3: =INDEX($A$3:$A$22,MATCH(LARGE($B$3:$B$22,1),$B$3:$B$22,0)) -> Rudi | E3: =VLOOKUP(D3,$A$3:$B$22,2,0)+$N3 -> 5.04 | F3: =INDEX($A$3:$A$22,MATCH(SMALL($B$3:$B$22,1),$B$3:$B$22,0)) -> Dieter | G3: =VLOOKUP(F3,$A$3:$B$22,2,0)+$N3 -> 0.1 | I3: =INDEX($A$3:$A$22,MATCH(LARGE($B$3:$B$22,2),$B$3:$B$22,0)) -> Günther | J3: =VLOOKUP(I3,$A$3:$B$22,2,0)+$O3 -> 4.17 | K3: =INDEX($A$3:$A$22,MATCH(SMALL($B$3:$B$22,2),$B$3:$B$22,0)) -> Kurt | L3: =VLOOKUP(K3,$A$3:$B$22,2,0)+$O3 -> 0.19 | M3: 21 zu 12
A4: =IFERROR(INDEX(Tabelle4!$I$3:$I$7,MATCH(B4,Tabelle4!$J$3:$J$7,0)),IFERROR(INDEX(Tabelle4!$K$3:$K$7,MATCH(B4,Tabelle4!$L$3:$L$7,0)),IFERROR(INDEX(Tabelle4!$F$3:$F$7,MATCH(B4,Tabelle4!$G$3:$G$7,0)),IFERROR(INDEX(Tabelle4!$D$3:$D$7,MATCH(B4,Tabelle4!$E$3:$E$7,0)),"Nicht gefunden")))) -> Günther | B4: =LARGE(Tabelle4!$D$3:$L$7,ROW()-2) -> 4.17 | D4: =INDEX($A$3:$A$22,MATCH(LARGE($B$3:$B$22,3),$B$3:$B$22,0)) -> Henry | E4: =VLOOKUP(D4,$A$3:$B$22,2,0)+$N4 -> 3.2 | F4: =INDEX($A$3:$A$22,MATCH(SMALL($B$3:$B$22,3),$B$3:$B$22,0)) -> Sören | G4: 1.02 | I4: =INDEX($A$3:$A$22,MATCH(LARGE($B$3:$B$22,4),$B$3:$B$22,0)) -> Bernd | J4: =VLOOKUP(I4,$A$3:$B$22,2,0)+$O4 -> 3.16 | K4: =INDEX($A$3:$A$22,MATCH(SMALL($B$3:$B$22,4),$B$3:$B$22,0)) -> Peter | L4: 1.05 | M4: 6 zu 21
A5: =IFERROR(INDEX(Tabelle4!$I$3:$I$7,MATCH(B5,Tabelle4!$J$3:$J$7,0)),IFERROR(INDEX(Tabelle4!$K$3:$K$7,MATCH(B5,Tabelle4!$L$3:$L$7,0)),IFERROR(INDEX(Tabelle4!$F$3:$F$7,MATCH(B5,Tabelle4!$G$3:$G$7,0)),IFERROR(INDEX(Tabelle4!$D$3:$D$7,MATCH(B5,Tabelle4!$E$3:$E$7,0)),"Nicht gefunden")))) -> Henry | B5: =LARGE(Tabelle4!$D$3:$L$7,ROW()-2) -> 3.2 | D5: =INDEX($A$3:$A$22,MATCH(LARGE($B$3:$B$22,5),$B$3:$B$22,0)) -> Manfred | E5: 3.01 | F5: =INDEX($A$3:$A$22,MATCH(SMALL($B$3:$B$22,5),$B$3:$B$22,0)) -> Marec | G5: 1.06 | I5: =INDEX($A$3:$A$22,MATCH(LARGE($B$3:$B$22,6),$B$3:$B$22,0)) -> Wolfgang | J5: 2.62 | K5: =INDEX($A$3:$A$22,MATCH(SMALL($B$3:$B$22,6),$B$3:$B$22,0)) -> Christoph | L5: 1.53 | M5: 19 zu 21
A6: =IFERROR(INDEX(Tabelle4!$I$3:$I$7,MATCH(B6,Tabelle4!$J$3:$J$7,0)),IFERROR(INDEX(Tabelle4!$K$3:$K$7,MATCH(B6,Tabelle4!$L$3:$L$7,0)),IFERROR(INDEX(Tabelle4!$F$3:$F$7,MATCH(B6,Tabelle4!$G$3:$G$7,0)),IFERROR(INDEX(Tabelle4!$D$3:$D$7,MATCH(B6,Tabelle4!$E$3:$E$7,0)),"Nicht gefunden")))) -> Bernd | B6: =LARGE(Tabelle4!$D$3:$L$7,ROW()-2) -> 3.16 | D6: =INDEX($A$3:$A$22,MATCH(LARGE($B$3:$B$22,7),$B$3:$B$22,0)) -> Willi | E6: 2.59 | F6: =INDEX($A$3:$A$22,MATCH(SMALL($B$3:$B$22,7),$B$3:$B$22,0)) -> Mario | G6: 1.57 | I6: =INDEX($A$3:$A$22,MATCH(LARGE($B$3:$B$22,8),$B$3:$B$22,0)) -> Ralf | J6: 2.15 | K6: =INDEX($A$3:$A$22,MATCH(SMALL($B$3:$B$22,8),$B$3:$B$22,0)) -> Henrik | L6: 1.63 | M6: 8 zu 21
A7: =IFERROR(INDEX(Tabelle4!$I$3:$I$7,MATCH(B7,Tabelle4!$J$3:$J$7,0)),IFERROR(INDEX(Tabelle4!$K$3:$K$7,MATCH(B7,Tabelle4!$L$3:$L$7,0)),IFERROR(INDEX(Tabelle4!$F$3:$F$7,MATCH(B7,Tabelle4!$G$3:$G$7,0)),IFERROR(INDEX(Tabelle4!$D$3:$D$7,MATCH(B7,Tabelle4!$E$3:$E$7,0)),"Nicht gefunden")))) -> Manfred | B7: =LARGE(Tabelle4!$D$3:$L$7,ROW()-2) -> 3.01 | D7: =INDEX($A$3:$A$22,MATCH(LARGE($B$3:$B$22,9),$B$3:$B$22,0)) -> Georg | E7: 2.14 | F7: =INDEX($A$3:$A$22,MATCH(SMALL($B$3:$B$22,9),$B$3:$B$22,0)) -> Franz | G7: 1.68 | I7: =INDEX($A$3:$A$22,MATCH(LARGE($B$3:$B$22,10),$B$3:$B$22,0)) -> Jens | J7: 2.11 | K7: =INDEX($A$3:$A$22,MATCH(SMALL($B$3:$B$22,10),$B$3:$B$22,0)) -> Timo | L7: 2.08 | M7: 21 zu 19
A8: =IFERROR(INDEX(Tabelle4!$I$3:$I$7,MATCH(B8,Tabelle4!$J$3:$J$7,0)),IFERROR(INDEX(Tabelle4!$K$3:$K$7,MATCH(B8,Tabelle4!$L$3:$L$7,0)),IFERROR(INDEX(Tabelle4!$F$3:$F$7,MATCH(B8,Tabelle4!$G$3:$G$7,0)),IFERROR(INDEX(Tabelle4!$D$3:$D$7,MATCH(B8,Tabelle4!$E$3:$E$7,0)),"Nicht gefunden")))) -> Wolfgang | B8: =LARGE(Tabelle4!$D$3:$L$7,ROW()-2) -> 2.62
A9: =IFERROR(INDEX(Tabelle4!$I$3:$I$7,MATCH(B9,Tabelle4!$J$3:$J$7,0)),IFERROR(INDEX(Tabelle4!$K$3:$K$7,MATCH(B9,Tabelle4!$L$3:$L$7,0)),IFERROR(INDEX(Tabelle4!$F$3:$F$7,MATCH(B9,Tabelle4!$G$3:$G$7,0)),IFERROR(INDEX(Tabelle4!$D$3:$D$7,MATCH(B9,Tabelle4!$E$3:$E$7,0)),"Nicht gefunden")))) -> Willi | B9: =LARGE(Tabelle4!$D$3:$L$7,ROW()-2) -> 2.59
A10: =IFERROR(INDEX(Tabelle4!$I$3:$I$7,MATCH(B10,Tabelle4!$J$3:$J$7,0)),IFERROR(INDEX(Tabelle4!$K$3:$K$7,MATCH(B10,Tabelle4!$L$3:$L$7,0)),IFERROR(INDEX(Tabelle4!$F$3:$F$7,MATCH(B10,Tabelle4!$G$3:$G$7,0)),IFERROR(INDEX(Tabelle4!$D$3:$D$7,MATCH(B10,Tabelle4!$E$3:$E$7,0)),"Nicht gefunden")))) -> Ralf | B10: =LARGE(Tabelle4!$D$3:$L$7,ROW()-2) -> 2.15
A11: =IFERROR(INDEX(Tabelle4!$I$3:$I$7,MATCH(B11,Tabelle4!$J$3:$J$7,0)),IFERROR(INDEX(Tabelle4!$K$3:$K$7,MATCH(B11,Tabelle4!$L$3:$L$7,0)),IFERROR(INDEX(Tabelle4!$F$3:$F$7,MATCH(B11,Tabelle4!$G$3:$G$7,0)),IFERROR(INDEX(Tabelle4!$D$3:$D$7,MATCH(B11,Tabelle4!$E$3:$E$7,0)),"Nicht gefunden")))) -> Georg | B11: =LARGE(Tabelle4!$D$3:$L$7,ROW()-2) -> 2.14
A12: =IFERROR(INDEX(Tabelle4!$I$3:$I$7,MATCH(B12,Tabelle4!$J$3:$J$7,0)),IFERROR(INDEX(Tabelle4!$K$3:$K$7,MATCH(B12,Tabelle4!$L$3:$L$7,0)),IFERROR(INDEX(Tabelle4!$F$3:$F$7,MATCH(B12,Tabelle4!$G$3:$G$7,0)),IFERROR(INDEX(Tabelle4!$D$3:$D$7,MATCH(B12,Tabelle4!$E$3:$E$7,0)),"Nicht gefunden")))) -> Jens | B12: =LARGE(Tabelle4!$D$3:$L$7,ROW()-2) -> 2.11
A13: =IFERROR(INDEX(Tabelle4!$I$3:$I$7,MATCH(B13,Tabelle4!$J$3:$J$7,0)),IFERROR(INDEX(Tabelle4!$K$3:$K$7,MATCH(B13,Tabelle4!$L$3:$L$7,0)),IFERROR(INDEX(Tabelle4!$F$3:$F$7,MATCH(B13,Tabelle4!$G$3:$G$7,0)),IFERROR(INDEX(Tabelle4!$D$3:$D$7,MATCH(B13,Tabelle4!$E$3:$E$7,0)),"Nicht gefunden")))) -> Timo | B13: =LARGE(Tabelle4!$D$3:$L$7,ROW()-2) -> 2.08
A14: =IFERROR(INDEX(Tabelle4!$I$3:$I$7,MATCH(B14,Tabelle4!$J$3:$J$7,0)),IFERROR(INDEX(Tabelle4!$K$3:$K$7,MATCH(B14,Tabelle4!$L$3:$L$7,0)),IFERROR(INDEX(Tabelle4!$F$3:$F$7,MATCH(B14,Tabelle4!$G$3:$G$7,0)),IFERROR(INDEX(Tabelle4!$D$3:$D$7,MATCH(B14,Tabelle4!$E$3:$E$7,0)),"Nicht gefunden")))) -> Franz | B14: =LARGE(Tabelle4!$D$3:$L$7,ROW()-2) -> 1.68
A15: =IFERROR(INDEX(Tabelle4!$I$3:$I$7,MATCH(B15,Tabelle4!$J$3:$J$7,0)),IFERROR(INDEX(Tabelle4!$K$3:$K$7,MATCH(B15,Tabelle4!$L$3:$L$7,0)),IFERROR(INDEX(Tabelle4!$F$3:$F$7,MATCH(B15,Tabelle4!$G$3:$G$7,0)),IFERROR(INDEX(Tabelle4!$D$3:$D$7,MATCH(B15,Tabelle4!$E$3:$E$7,0)),"Nicht gefunden")))) -> Henrik | B15: =LARGE(Tabelle4!$D$3:$L$7,ROW()-2) -> 1.63
A16: =IFERROR(INDEX(Tabelle4!$I$3:$I$7,MATCH(B16,Tabelle4!$J$3:$J$7,0)),IFERROR(INDEX(Tabelle4!$K$3:$K$7,MATCH(B16,Tabelle4!$L$3:$L$7,0)),IFERROR(INDEX(Tabelle4!$F$3:$F$7,MATCH(B16,Tabelle4!$G$3:$G$7,0)),IFERROR(INDEX(Tabelle4!$D$3:$D$7,MATCH(B16,Tabelle4!$E$3:$E$7,0)),"Nicht gefunden")))) -> Mario | B16: =LARGE(Tabelle4!$D$3:$L$7,ROW()-2) -> 1.57
A17: =IFERROR(INDEX(Tabelle4!$I$3:$I$7,MATCH(B17,Tabelle4!$J$3:$J$7,0)),IFERROR(INDEX(Tabelle4!$K$3:$K$7,MATCH(B17,Tabelle4!$L$3:$L$7,0)),IFERROR(INDEX(Tabelle4!$F$3:$F$7,MATCH(B17,Tabelle4!$G$3:$G$7,0)),IFERROR(INDEX(Tabelle4!$D$3:$D$7,MATCH(B17,Tabelle4!$E$3:$E$7,0)),"Nicht gefunden")))) -> Christoph | B17: =LARGE(Tabelle4!$D$3:$L$7,ROW()-2) -> 1.53
A18: =IFERROR(INDEX(Tabelle4!$I$3:$I$7,MATCH(B18,Tabelle4!$J$3:$J$7,0)),IFERROR(INDEX(Tabelle4!$K$3:$K$7,MATCH(B18,Tabelle4!$L$3:$L$7,0)),IFERROR(INDEX(Tabelle4!$F$3:$F$7,MATCH(B18,Tabelle4!$G$3:$G$7,0)),IFERROR(INDEX(Tabelle4!$D$3:$D$7,MATCH(B18,Tabelle4!$E$3:$E$7,0)),"Nicht gefunden")))) -> Marec | B18: =LARGE(Tabelle4!$D$3:$L$7,ROW()-2) -> 1.06
A19: =IFERROR(INDEX(Tabelle4!$I$3:$I$7,MATCH(B19,Tabelle4!$J$3:$J$7,0)),IFERROR(INDEX(Tabelle4!$K$3:$K$7,MATCH(B19,Tabelle4!$L$3:$L$7,0)),IFERROR(INDEX(Tabelle4!$F$3:$F$7,MATCH(B19,Tabelle4!$G$3:$G$7,0)),IFERROR(INDEX(Tabelle4!$D$3:$D$7,MATCH(B19,Tabelle4!$E$3:$E$7,0)),"Nicht gefunden")))) -> Peter | B19: =LARGE(Tabelle4!$D$3:$L$7,ROW()-2) -> 1.05
A20: =IFERROR(INDEX(Tabelle4!$I$3:$I$7,MATCH(B20,Tabelle4!$J$3:$J$7,0)),IFERROR(INDEX(Tabelle4!$K$3:$K$7,MATCH(B20,Tabelle4!$L$3:$L$7,0)),IFERROR(INDEX(Tabelle4!$F$3:$F$7,MATCH(B20,Tabelle4!$G$3:$G$7,0)),IFERROR(INDEX(Tabelle4!$D$3:$D$7,MATCH(B20,Tabelle4!$E$3:$E$7,0)),"Nicht gefunden")))) -> Sören | B20: =LARGE(Tabelle4!$D$3:$L$7,ROW()-2) -> 1.02
A21: =IFERROR(INDEX(Tabelle4!$I$3:$I$7,MATCH(B21,Tabelle4!$J$3:$J$7,0)),IFERROR(INDEX(Tabelle4!$K$3:$K$7,MATCH(B21,Tabelle4!$L$3:$L$7,0)),IFERROR(INDEX(Tabelle4!$F$3:$F$7,MATCH(B21,Tabelle4!$G$3:$G$7,0)),IFERROR(INDEX(Tabelle4!$D$3:$D$7,MATCH(B21,Tabelle4!$E$3:$E$7,0)),"Nicht gefunden")))) -> Kurt | B21: =LARGE(Tabelle4!$D$3:$L$7,ROW()-2) -> 0.19
A22: =IFERROR(INDEX(Tabelle4!$I$3:$I$7,MATCH(B22,Tabelle4!$J$3:$J$7,0)),IFERROR(INDEX(Tabelle4!$K$3:$K$7,MATCH(B22,Tabelle4!$L$3:$L$7,0)),IFERROR(INDEX(Tabelle4!$F$3:$F$7,MATCH(B22,Tabelle4!$G$3:$G$7,0)),IFERROR(INDEX(Tabelle4!$D$3:$D$7,MATCH(B22,Tabelle4!$E$3:$E$7,0)),"Nicht gefunden")))) -> Dieter | B22: =LARGE(Tabelle4!$D$3:$L$7,ROW()-2) -> 0.1

Sheet Tabelle6
A1: Spielernamen (Reihenfolge wird ausgelost) | B1: Wert aus bisher gespielten Spielen | D1: Team 1 | E1: Punktevergabe nach dem Spiel | F1: Team 1 | G1: Punktevergabe nach dem Spiel | H1: gegen | I1: Team 2 | J1: Punktevergabe nach dem Spiel | K1: Team 2 | L1: Punktevergabe nach dem Spiel | M1: Ergebnis per Hand – nur Statistik | N1: Punkte TEAM1 | O1: Punkte TEAM2
A3: =IFERROR(INDEX(Tabelle5!$I$3:$I$7,MATCH(B3,Tabelle5!$J$3:$J$7,0)),IFERROR(INDEX(Tabelle5!$K$3:$K$7,MATCH(B3,Tabelle5!$L$3:$L$7,0)),IFERROR(INDEX(Tabelle5!$F$3:$F$7,MATCH(B3,Tabelle5!$G$3:$G$7,0)),IFERROR(INDEX(Tabelle5!$D$3:$D$7,MATCH(B3,Tabelle5!$E$3:$E$7,0)),"Nicht gefunden")))) -> Rudi | B3: =LARGE(Tabelle5!$D$3:$L$7,ROW()-2) -> 5.04 | D3: =INDEX($A$3:$A$22,MATCH(LARGE($B$3:$B$22,1),$B$3:$B$22,0)) -> Rudi | E3: =VLOOKUP(D3,$A$3:$B$22,2,0)+$N3 -> 5.04 | F3: =INDEX($A$3:$A$22,MATCH(SMALL($B$3:$B$22,1),$B$3:$B$22,0)) -> Dieter | G3: =VLOOKUP(F3,$A$3:$B$22,2,0)+$N3 -> 0.1 | I3: =INDEX($A$3:$A$22,MATCH(LARGE($B$3:$B$22,2),$B$3:$B$22,0)) -> Günther | J3: =VLOOKUP(I3,$A$3:$B$22,2,0)+$O3 -> 4.17 | K3: =INDEX($A$3:$A$22,MATCH(SMALL($B$3:$B$22,2),$B$3:$B$22,0)) -> Kurt | L3: =VLOOKUP(K3,$A$3:$B$22,2,0)+$O3 -> 0.19 | M3: 21 zu 12
A4: =IFERROR(INDEX(Tabelle5!$I$3:$I$7,MATCH(B4,Tabelle5!$J$3:$J$7,0)),IFERROR(INDEX(Tabelle5!$K$3:$K$7,MATCH(B4,Tabelle5!$L$3:$L$7,0)),IFERROR(INDEX(Tabelle5!$F$3:$F$7,MATCH(B4,Tabelle5!$G$3:$G$7,0)),IFERROR(INDEX(Tabelle5!$D$3:$D$7,MATCH(B4,Tabelle5!$E$3:$E$7,0)),"Nicht gefunden")))) -> Günther | B4: =LARGE(Tabelle5!$D$3:$L$7,ROW()-2) -> 4.17 | D4: =INDEX($A$3:$A$22,MATCH(LARGE($B$3:$B$22,3),$B$3:$B$22,0)) -> Henry | E4: =VLOOKUP(D4,$A$3:$B$22,2,0)+$N4 -> 3.2 | F4: =INDEX($A$3:$A$22,MATCH(SMALL($B$3:$B$22,3),$B$3:$B$22,0)) -> Sören | G4: 1.02 | I4: =INDEX($A$3:$A$22,MATCH(LARGE($B$3:$B$22,4),$B$3:$B$22,0)) -> Bernd | J4: =VLOOKUP(I4,$A$3:$B$22,2,0)+$O4 -> 3.16 | K4: =INDEX($A$3:$A$22,MATCH(SMALL($B$3:$B$22,4),$B$3:$B$22,0)) -> Peter | L4: 1.05 | M4: 6 zu 21
A5: =IFERROR(INDEX(Tabelle5!$I$3:$I$7,MATCH(B5,Tabelle5!$J$3:$J$7,0)),IFERROR(INDEX(Tabelle5!$K$3:$K$7,MATCH(B5,Tabelle5!$L$3:$L$7,0)),IFERROR(INDEX(Tabelle5!$F$3:$F$7,MATCH(B5,Tabelle5!$G$3:$G$7,0)),IFERROR(INDEX(Tabelle5!$D$3:$D$7,MATCH(B5,Tabelle5!$E$3:$E$7,0)),"Nicht gefunden")))) -> Henry | B5: =LARGE(Tabelle5!$D$3:$L$7,ROW()-2) -> 3.2 | D5: =INDEX($A$3:$A$22,MATCH(LARGE($B$3:$B$22,5),$B$3:$B$22,0)) -> Manfred | E5: 3.01 | F5: =INDEX($A$3:$A$22,MATCH(SMALL($B$3:$B$22,5),$B$3:$B$22,0)) -> Marec | G5: 1.06 | I5: =INDEX($A$3:$A$22,MATCH(LARGE($B$3:$B$22,6),$B$3:$B$22,0)) -> Wolfgang | J5: 2.62 | K5: =INDEX($A$3:$A$22,MATCH(SMALL($B$3:$B$22,6),$B$3:$B$22,0)) -> Christoph | L5: 1.53 | M5: 19 zu 21
A6: =IFERROR(INDEX(Tabelle5!$I$3:$I$7,MATCH(B6,Tabelle5!$J$3:$J$7,0)),IFERROR(INDEX(Tabelle5!$K$3:$K$7,MATCH(B6,Tabelle5!$L$3:$L$7,0)),IFERROR(INDEX(Tabelle5!$F$3:$F$7,MATCH(B6,Tabelle5!$G$3:$G$7,0)),IFERROR(INDEX(Tabelle5!$D$3:$D$7,MATCH(B6,Tabelle5!$E$3:$E$7,0)),"Nicht gefunden")))) -> Bernd | B6: =LARGE(Tabelle5!$D$3:$L$7,ROW()-2) -> 3.16 | D6: =INDEX($A$3:$A$22,MATCH(LARGE($B$3:$B$22,7),$B$3:$B$22,0)) -> Willi | E6: 2.59 | F6: =INDEX($A$3:$A$22,MATCH(SMALL($B$3:$B$22,7),$B$3:$B$22,0)) -> Mario | G6: 1.57 | I6: =INDEX($A$3:$A$22,MATCH(LARGE($B$3:$B$22,8),$B$3:$B$22,0)) -> Ralf | J6: 2.15 | K6: =INDEX($A$3:$A$22,MATCH(SMALL($B$3:$B$22,8),$B$3:$B$22,0)) -> Henrik | L6: 1.63 | M6: 8 zu 21
A7: =IFERROR(INDEX(Tabelle5!$I$3:$I$7,MATCH(B7,Tabelle5!$J$3:$J$7,0)),IFERROR(INDEX(Tabelle5!$K$3:$K$7,MATCH(B7,Tabelle5!$L$3:$L$7,0)),IFERROR(INDEX(Tabelle5!$F$3:$F$7,MATCH(B7,Tabelle5!$G$3:$G$7,0)),IFERROR(INDEX(Tabelle5!$D$3:$D$7,MATCH(B7,Tabelle5!$E$3:$E$7,0)),"Nicht gefunden")))) -> Manfred | B7: =LARGE(Tabelle5!$D$3:$L$7,ROW()-2) -> 3.01 | D7: =INDEX($A$3:$A$22,MATCH(LARGE($B$3:$B$22,9),$B$3:$B$22,0)) -> Georg | E7: 2.14 | F7: =INDEX($A$3:$A$22,MATCH(SMALL($B$3:$B$22,9),$B$3:$B$22,0)) -> Franz | G7: 1.68 | I7: =INDEX($A$3:$A$22,MATCH(LARGE($B$3:$B$22,10),$B$3:$B$22,0)) -> Jens | J7: 2.11 | K7: =INDEX($A$3:$A$22,MATCH(SMALL($B$3:$B$22,10),$B$3:$B$22,0)) -> Timo | L7: 2.08 | M7: 21 zu 19
A8: =IFERROR(INDEX(Tabelle5!$I$3:$I$7,MATCH(B8,Tabelle5!$J$3:$J$7,0)),IFERROR(INDEX(Tabelle5!$K$3:$K$7,MATCH(B8,Tabelle5!$L$3:$L$7,0)),IFERROR(INDEX(Tabelle5!$F$3:$F$7,MATCH(B8,Tabelle5!$G$3:$G$7,0)),IFERROR(INDEX(Tabelle5!$D$3:$D$7,MATCH(B8,Tabelle5!$E$3:$E$7,0)),"Nicht gefunden")))) -> Wolfgang | B8: =LARGE(Tabelle5!$D$3:$L$7,ROW()-2) -> 2.62
A9: =IFERROR(INDEX(Tabelle5!$I$3:$I$7,MATCH(B9,Tabelle5!$J$3:$J$7,0)),IFERROR(INDEX(Tabelle5!$K$3:$K$7,MATCH(B9,Tabelle5!$L$3:$L$7,0)),IFERROR(INDEX(Tabelle5!$F$3:$F$7,MATCH(B9,Tabelle5!$G$3:$G$7,0)),IFERROR(INDEX(Tabelle5!$D$3:$D$7,MATCH(B9,Tabelle5!$E$3:$E$7,0)),"Nicht gefunden")))) -> Willi | B9: =LARGE(Tabelle5!$D$3:$L$7,ROW()-2) -> 2.59
A10: =IFERROR(INDEX(Tabelle5!$I$3:$I$7,MATCH(B10,Tabelle5!$J$3:$J$7,0)),IFERROR(INDEX(Tabelle5!$K$3:$K$7,MATCH(B10,Tabelle5!$L$3:$L$7,0)),IFERROR(INDEX(Tabelle5!$F$3:$F$7,MATCH(B10,Tabelle5!$G$3:$G$7,0)),IFERROR(INDEX(Tabelle5!$D$3:$D$7,MATCH(B10,Tabelle5!$E$3:$E$7,0)),"Nicht gefunden")))) -> Ralf | B10: =LARGE(Tabelle5!$D$3:$L$7,ROW()-2) -> 2.15
A11: =IFERROR(INDEX(Tabelle5!$I$3:$I$7,MATCH(B11,Tabelle5!$J$3:$J$7,0)),IFERROR(INDEX(Tabelle5!$K$3:$K$7,MATCH(B11,Tabelle5!$L$3:$L$7,0)),IFERROR(INDEX(Tabelle5!$F$3:$F$7,MATCH(B11,Tabelle5!$G$3:$G$7,0)),IFERROR(INDEX(Tabelle5!$D$3:$D$7,MATCH(B11,Tabelle5!$E$3:$E$7,0)),"Nicht gefunden")))) -> Georg | B11: =LARGE(Tabelle5!$D$3:$L$7,ROW()-2) -> 2.14
A12: =IFERROR(INDEX(Tabelle5!$I$3:$I$7,MATCH(B12,Tabelle5!$J$3:$J$7,0)),IFERROR(INDEX(Tabelle5!$K$3:$K$7,MATCH(B12,Tabelle5!$L$3:$L$7,0)),IFERROR(INDEX(Tabelle5!$F$3:$F$7,MATCH(B12,Tabelle5!$G$3:$G$7,0)),IFERROR(INDEX(Tabelle5!$D$3:$D$7,MATCH(B12,Tabelle5!$E$3:$E$7,0)),"Nicht gefunden")))) -> Jens | B12: =LARGE(Tabelle5!$D$3:$L$7,ROW()-2) -> 2.11
A13: =IFERROR(INDEX(Tabelle5!$I$3:$I$7,MATCH(B13,Tabelle5!$J$3:$J$7,0)),IFERROR(INDEX(Tabelle5!$K$3:$K$7,MATCH(B13,Tabelle5!$L$3:$L$7,0)),IFERROR(INDEX(Tabelle5!$F$3:$F$7,MATCH(B13,Tabelle5!$G$3:$G$7,0)),IFERROR(INDEX(Tabelle5!$D$3:$D$7,MATCH(B13,Tabelle5!$E$3:$E$7,0)),"Nicht gefunden")))) -> Timo | B13: =LARGE(Tabelle5!$D$3:$L$7,ROW()-2) -> 2.08
A14: =IFERROR(INDEX(Tabelle5!$I$3:$I$7,MATCH(B14,Tabelle5!$J$3:$J$7,0)),IFERROR(INDEX(Tabelle5!$K$3:$K$7,MATCH(B14,Tabelle5!$L$3:$L$7,0)),IFERROR(INDEX(Tabelle5!$F$3:$F$7,MATCH(B14,Tabelle5!$G$3:$G$7,0)),IFERROR(INDEX(Tabelle5!$D$3:$D$7,MATCH(B14,Tabelle5!$E$3:$E$7,0)),"Nicht gefunden")))) -> Franz | B14: =LARGE(Tabelle5!$D$3:$L$7,ROW()-2) -> 1.68
A15: =IFERROR(INDEX(Tabelle5!$I$3:$I$7,MATCH(B15,Tabelle5!$J$3:$J$7,0)),IFERROR(INDEX(Tabelle5!$K$3:$K$7,MATCH(B15,Tabelle5!$L$3:$L$7,0)),IFERROR(INDEX(Tabelle5!$F$3:$F$7,MATCH(B15,Tabelle5!$G$3:$G$7,0)),IFERROR(INDEX(Tabelle5!$D$3:$D$7,MATCH(B15,Tabelle5!$E$3:$E$7,0)),"Nicht gefunden")))) -> Henrik | B15: =LARGE(Tabelle5!$D$3:$L$7,ROW()-2) -> 1.63
A16: =IFERROR(INDEX(Tabelle5!$I$3:$I$7,MATCH(B16,Tabelle5!$J$3:$J$7,0)),IFERROR(INDEX(Tabelle5!$K$3:$K$7,MATCH(B16,Tabelle5!$L$3:$L$7,0)),IFERROR(INDEX(Tabelle5!$F$3:$F$7,MATCH(B16,Tabelle5!$G$3:$G$7,0)),IFERROR(INDEX(Tabelle5!$D$3:$D$7,MATCH(B16,Tabelle5!$E$3:$E$7,0)),"Nicht gefunden")))) -> Mario | B16: =LARGE(Tabelle5!$D$3:$L$7,ROW()-2) -> 1.57
A17: =IFERROR(INDEX(Tabelle5!$I$3:$I$7,MATCH(B17,Tabelle5!$J$3:$J$7,0)),IFERROR(INDEX(Tabelle5!$K$3:$K$7,MATCH(B17,Tabelle5!$L$3:$L$7,0)),IFERROR(INDEX(Tabelle5!$F$3:$F$7,MATCH(B17,Tabelle5!$G$3:$G$7,0)),IFERROR(INDEX(Tabelle5!$D$3:$D$7,MATCH(B17,Tabelle5!$E$3:$E$7,0)),"Nicht gefunden")))) -> Christoph | B17: =LARGE(Tabelle5!$D$3:$L$7,ROW()-2) -> 1.53
A18: =IFERROR(INDEX(Tabelle5!$I$3:$I$7,MATCH(B18,Tabelle5!$J$3:$J$7,0)),IFERROR(INDEX(Tabelle5!$K$3:$K$7,MATCH(B18,Tabelle5!$L$3:$L$7,0)),IFERROR(INDEX(Tabelle5!$F$3:$F$7,MATCH(B18,Tabelle5!$G$3:$G$7,0)),IFERROR(INDEX(Tabelle5!$D$3:$D$7,MATCH(B18,Tabelle5!$E$3:$E$7,0)),"Nicht gefunden")))) -> Marec | B18: =LARGE(Tabelle5!$D$3:$L$7,ROW()-2) -> 1.06
A19: =IFERROR(INDEX(Tabelle5!$I$3:$I$7,MATCH(B19,Tabelle5!$J$3:$J$7,0)),IFERROR(INDEX(Tabelle5!$K$3:$K$7,MATCH(B19,Tabelle5!$L$3:$L$7,0)),IFERROR(INDEX(Tabelle5!$F$3:$F$7,MATCH(B19,Tabelle5!$G$3:$G$7,0)),IFERROR(INDEX(Tabelle5!$D$3:$D$7,MATCH(B19,Tabelle5!$E$3:$E$7,0)),"Nicht gefunden")))) -> Peter | B19: =LARGE(Tabelle5!$D$3:$L$7,ROW()-2) -> 1.05
A20: =IFERROR(INDEX(Tabelle5!$I$3:$I$7,MATCH(B20,Tabelle5!$J$3:$J$7,0)),IFERROR(INDEX(Tabelle5!$K$3:$K$7,MATCH(B20,Tabelle5!$L$3:$L$7,0)),IFERROR(INDEX(Tabelle5!$F$3:$F$7,MATCH(B20,Tabelle5!$G$3:$G$7,0)),IFERROR(INDEX(Tabelle5!$D$3:$D$7,MATCH(B20,Tabelle5!$E$3:$E$7,0)),"Nicht gefunden")))) -> Sören | B20: =LARGE(Tabelle5!$D$3:$L$7,ROW()-2) -> 1.02
A21: =IFERROR(INDEX(Tabelle5!$I$3:$I$7,MATCH(B21,Tabelle5!$J$3:$J$7,0)),IFERROR(INDEX(Tabelle5!$K$3:$K$7,MATCH(B21,Tabelle5!$L$3:$L$7,0)),IFERROR(INDEX(Tabelle5!$F$3:$F$7,MATCH(B21,Tabelle5!$G$3:$G$7,0)),IFERROR(INDEX(Tabelle5!$D$3:$D$7,MATCH(B21,Tabelle5!$E$3:$E$7,0)),"Nicht gefunden")))) -> Kurt | B21: =LARGE(Tabelle5!$D$3:$L$7,ROW()-2) -> 0.19
A22: =IFERROR(INDEX(Tabelle5!$I$3:$I$7,MATCH(B22,Tabelle5!$J$3:$J$7,0)),IFERROR(INDEX(Tabelle5!$K$3:$K$7,MATCH(B22,Tabelle5!$L$3:$L$7,0)),IFERROR(INDEX(Tabelle5!$F$3:$F$7,MATCH(B22,Tabelle5!$G$3:$G$7,0)),IFERROR(INDEX(Tabelle5!$D$3:$D$7,MATCH(B22,Tabelle5!$E$3:$E$7,0)),"Nicht gefunden")))) -> Dieter | B22: =LARGE(Tabelle5!$D$3:$L$7,ROW()-2) -> 0.1

Sheet Halbfinale
A1: Spielernamen (Reihenfolge wird ausgelost) | B1: Wert aus bisher gespielten Spielen | D1: Team 1 | E1: Punktevergabe nach dem Spiel | F1: Team 1 | G1: Punktevergabe nach dem Spiel | H1: gegen | I1: Team 2 | J1: Punktevergabe nach dem Spiel | K1: Team 2 | L1: Punktevergabe nach dem Spiel | M1: Ergebnis per Hand – nur Statistik | N1: Punkte TEAM1 | O1: Punkte TEAM2
A3: =IFERROR(INDEX(Tabelle6!$I$3:$I$7,MATCH(B3,Tabelle6!$J$3:$J$7,0)),IFERROR(INDEX(Tabelle6!$K$3:$K$7,MATCH(B3,Tabelle6!$L$3:$L$7,0)),IFERROR(INDEX(Tabelle6!$F$3:$F$7,MATCH(B3,Tabelle6!$G$3:$G$7,0)),IFERROR(INDEX(Tabelle6!$D$3:$D$7,MATCH(B3,Tabelle6!$E$3:$E$7,0)),"Nicht gefunden")))) -> Rudi | B3: =LARGE(Tabelle6!$D$3:$L$7,ROW()-2) -> 5.04 | D3: =INDEX($A$3:$A$22,MATCH(LARGE($B$3:$B$22,1),$B$3:$B$22,0)) -> Rudi | E3: =VLOOKUP(D3,$A$3:$B$22,2,0)+$N3 -> 6.04 | F3: =INDEX($A$3:$A$22,MATCH(SMALL($B$3:$B$22,1),$B$3:$B$22,0)) -> Ralf | G3: =VLOOKUP(F3,$A$3:$B$22,2,0)+$N3 -> 3.15 | I3: =INDEX($A$3:$A$22,MATCH(LARGE($B$3:$B$22,2),$B$3:$B$22,0)) -> Günther | J3: =VLOOKUP(I3,$A$3:$B$22,2,0)+$O3 -> 4.17 | K3: =INDEX($A$3:$A$22,MATCH(SMALL($B$3:$B$22,2),$B$3:$B$22,0)) -> Willi | L3: =VLOOKUP(K3,$A$3:$B$22,2,0)+$O3 -> 2.59 | M3: 21 zu 12 | N3: 1 | O3: 0
A4: =IFERROR(INDEX(Tabelle6!$I$3:$I$7,MATCH(B4,Tabelle6!$J$3:$J$7,0)),IFERROR(INDEX(Tabelle6!$K$3:$K$7,MATCH(B4,Tabelle6!$L$3:$L$7,0)),IFERROR(INDEX(Tabelle6!$F$3:$F$7,MATCH(B4,Tabelle6!$G$3:$G$7,0)),IFERROR(INDEX(Tabelle6!$D$3:$D$7,MATCH(B4,Tabelle6!$E$3:$E$7,0)),"Nicht gefunden")))) -> Günther | B4: =LARGE(Tabelle6!$D$3:$L$7,ROW()-2) -> 4.17 | D4: =INDEX($A$3:$A$22,MATCH(LARGE($B$3:$B$22,3),$B$3:$B$22,0)) -> Henry | E4: =VLOOKUP(D4,$A$3:$B$22,2,0)+$N4 -> 3.2 | F4: =INDEX($A$3:$A$22,MATCH(SMALL($B$3:$B$22,3),$B$3:$B$22,0)) -> Wolfgang | G4: =VLOOKUP(F4,$A$3:$B$22,2,0)+$N4 -> 2.62 | I4: =INDEX($A$3:$A$22,MATCH(LARGE($B$3:$B$22,4),$B$3:$B$22,0)) -> Bernd | J4: =VLOOKUP(I4,$A$3:$B$22,2,0)+$O4 -> 4.66 | K4: =INDEX($A$3:$A$22,MATCH(SMALL($B$3:$B$22,4),$B$3:$B$22,0)) -> Manfred | L4: 4.51 | M4: 6 zu 21 | N4: 0 | O4: 1.5
A5: =IFERROR(INDEX(Tabelle6!$I$3:$I$7,MATCH(B5,Tabelle6!$J$3:$J$7,0)),IFERROR(INDEX(Tabelle6!$K$3:$K$7,MATCH(B5,Tabelle6!$L$3:$L$7,0)),IFERROR(INDEX(Tabelle6!$F$3:$F$7,MATCH(B5,Tabelle6!$G$3:$G$7,0)),IFERROR(INDEX(Tabelle6!$D$3:$D$7,MATCH(B5,Tabelle6!$E$3:$E$7,0)),"Nicht gefunden")))) -> Henry | B5: =LARGE(Tabelle6!$D$3:$L$7,ROW()-2) -> 3.2
A6: =IFERROR(INDEX(Tabelle6!$I$3:$I$7,MATCH(B6,Tabelle6!$J$3:$J$7,0)),IFERROR(INDEX(Tabelle6!$K$3:$K$7,MATCH(B6,Tabelle6!$L$3:$L$7,0)),IFERROR(INDEX(Tabelle6!$F$3:$F$7,MATCH(B6,Tabelle6!$G$3:$G$7,0)),IFERROR(INDEX(Tabelle6!$D$3:$D$7,MATCH(B6,Tabelle6!$E$3:$E$7,0)),"Nicht gefunden")))) -> Bernd | B6: =LARGE(Tabelle6!$D$3:$L$7,ROW()-2) -> 3.16
A7: =IFERROR(INDEX(Tabelle6!$I$3:$I$7,MATCH(B7,Tabelle6!$J$3:$J$7,0)),IFERROR(INDEX(Tabelle6!$K$3:$K$7,MATCH(B7,Tabelle6!$L$3:$L$7,0)),IFERROR(INDEX(Tabelle6!$F$3:$F$7,MATCH(B7,Tabelle6!$G$3:$G$7,0)),IFERROR(INDEX(Tabelle6!$D$3:$D$7,MATCH(B7,Tabelle6!$E$3:$E$7,0)),"Nicht gefunden")))) -> Manfred | B7: =LARGE(Tabelle6!$D$3:$L$7,ROW()-2) -> 3.01
A8: =IFERROR(INDEX(Tabelle6!$I$3:$I$7,MATCH(B8,Tabelle6!$J$3:$J$7,0)),IFERROR(INDEX(Tabelle6!$K$3:$K$7,MATCH(B8,Tabelle6!$L$3:$L$7,0)),IFERROR(INDEX(Tabelle6!$F$3:$F$7,MATCH(B8,Tabelle6!$G$3:$G$7,0)),IFERROR(INDEX(Tabelle6!$D$3:$D$7,MATCH(B8,Tabelle6!$E$3:$E$7,0)),"Nicht gefunden")))) -> Wolfgang | B8: =LARGE(Tabelle6!$D$3:$L$7,ROW()-2) -> 2.62
A9: =IFERROR(INDEX(Tabelle6!$I$3:$I$7,MATCH(B9,Tabelle6!$J$3:$J$7,0)),IFERROR(INDEX(Tabelle6!$K$3:$K$7,MATCH(B9,Tabelle6!$L$3:$L$7,0)),IFERROR(INDEX(Tabelle6!$F$3:$F$7,MATCH(B9,Tabelle6!$G$3:$G$7,0)),IFERROR(INDEX(Tabelle6!$D$3:$D$7,MATCH(B9,Tabelle6!$E$3:$E$7,0)),"Nicht gefunden")))) -> Willi | B9: =LARGE(Tabelle6!$D$3:$L$7,ROW()-2) -> 2.59
A10: =IFERROR(INDEX(Tabelle6!$I$3:$I$7,MATCH(B10,Tabelle6!$J$3:$J$7,0)),IFERROR(INDEX(Tabelle6!$K$3:$K$7,MATCH(B10,Tabelle6!$L$3:$L$7,0)),IFERROR(INDEX(Tabelle6!$F$3:$F$7,MATCH(B10,Tabelle6!$G$3:$G$7,0)),IFERROR(INDEX(Tabelle6!$D$3:$D$7,MATCH(B10,Tabelle6!$E$3:$E$7,0)),"Nicht gefunden")))) -> Ralf | B10: =LARGE(Tabelle6!$D$3:$L$7,ROW()-2) -> 2.15

Sheet Finale
A1: Spielernamen (Reihenfolge wird ausgelost) | B1: Wert aus bisher gespielten Spielen | D1: Team 1 | E1: Punktevergabe nach dem Spiel | F1: Team 1 | G1: Punktevergabe nach dem Spiel | H1: gegen | I1: Team 2 | J1: Punktevergabe nach dem Spiel | K1: Team 2 | L1: Punktevergabe nach dem Spiel | M1: Ergebnis per Hand – nur Statistik | N1: Punkte TEAM1 | O1: Punkte TEAM2
A3: =IFERROR(INDEX(Halbfinale!$I$3:$I$7,MATCH(B3,Halbfinale!$J$3:$J$7,0)),IFERROR(INDEX(Halbfinale!$K$3:$K$7,MATCH(B3,Halbfinale!$L$3:$L$7,0)),IFERROR(INDEX(Halbfinale!$F$3:$F$7,MATCH(B3,Halbfinale!$G$3:$G$7,0)),IFERROR(INDEX(Halbfinale!$D$3:$D$7,MATCH(B3,Halbfinale!$E$3:$E$7,0)),"Nicht gefunden")))) -> Rudi | B3: =LARGE(Halbfinale!$D$3:$L$7,ROW()-2) -> 6.04 | D3: =INDEX($A$3:$A$22,MATCH(LARGE($B$3:$B$22,1),$B$3:$B$22,0)) -> Rudi | E3: =VLOOKUP(D3,$A$3:$B$22,2,0)+$N3 -> 6.04 | F3: =INDEX($A$3:$A$22,MATCH(SMALL($B$3:$B$22,1),$B$3:$B$22,0)) -> Günther | G3: =VLOOKUP(F3,$A$3:$B$22,2,0)+$N3 -> 4.17 | I3: =INDEX($A$3:$A$22,MATCH(LARGE($B$3:$B$22,2),$B$3:$B$22,0)) -> Bernd | J3: =VLOOKUP(I3,$A$3:$B$22,2,0)+$O3 -> 4.66 | K3: =INDEX($A$3:$A$22,MATCH(SMALL($B$3:$B$22,2),$B$3:$B$22,0)) -> Manfred | L3: =VLOOKUP(K3,$A$3:$B$22,2,0)+$O3 -> 4.51 | M3: 21 zu 12
A4: =IFERROR(INDEX(Halbfinale!$I$3:$I$7,MATCH(B4,Halbfinale!$J$3:$J$7,0)),IFERROR(INDEX(Halbfinale!$K$3:$K$7,MATCH(B4,Halbfinale!$L$3:$L$7,0)),IFERROR(INDEX(Halbfinale!$F$3:$F$7,MATCH(B4,Halbfinale!$G$3:$G$7,0)),IFERROR(INDEX(Halbfinale!$D$3:$D$7,MATCH(B4,Halbfinale!$E$3:$E$7,0)),"Nicht gefunden")))) -> Bernd | B4: =LARGE(Halbfinale!$D$3:$L$7,ROW()-2) -> 4.66
A5: =IFERROR(INDEX(Halbfinale!$I$3:$I$7,MATCH(B5,Halbfinale!$J$3:$J$7,0)),IFERROR(INDEX(Halbfinale!$K$3:$K$7,MATCH(B5,Halbfinale!$L$3:$L$7,0)),IFERROR(INDEX(Halbfinale!$F$3:$F$7,MATCH(B5,Halbfinale!$G$3:$G$7,0)),IFERROR(INDEX(Halbfinale!$D$3:$D$7,MATCH(B5,Halbfinale!$E$3:$E$7,0)),"Nicht gefunden")))) -> Manfred | B5: =LARGE(Halbfinale!$D$3:$L$7,ROW()-2) -> 4.51
A6: =IFERROR(INDEX(Halbfinale!$I$3:$I$7,MATCH(B6,Halbfinale!$J$3:$J$7,0)),IFERROR(INDEX(Halbfinale!$K$3:$K$7,MATCH(B6,Halbfinale!$L$3:$L$7,0)),IFERROR(INDEX(Halbfinale!$F$3:$F$7,MATCH(B6,Halbfinale!$G$3:$G$7,0)),IFERROR(INDEX(Halbfinale!$D$3:$D$7,MATCH(B6,Halbfinale!$E$3:$E$7,0)),"Nicht gefunden")))) -> Günther | B6: =LARGE(Halbfinale!$D$3:$L$7,ROW()-2) -> 4.17
